Workbook

Sheet WA Electric - Sched 92
D4: RESIDENTIAL | E4: GENERAL SVC. | F4: LG. GEN. SVC. | G4: EX LG GEN SVC | H4: PUMPING | I4: ST & AREA LTG
A5: Source | C5: TOTAL | D5: SCHEDULE 1,2 | E5: SCH. 11,12,13 | F5: SCH. 21,22,23 | G5: SCHEDULE 25/25I | H5: SCH. 30, 31, 32 | I5: SCH. 41-48
A7: Forecast | B7: Total Annual Forecasted kWh's | C7: =SUM(D7:I7) -> 5371944401 | D7: =SUM('Billing Determinants'!$H19:$S19) -> 2566493830 | E7: =SUM('Billing Determinants'!H20:S20) -> 681032601.8 | F7: =SUM('Billing Determinants'!H21:S21) -> 1311367843 | G7: =SUM('Billing Determinants'!H22:S22) -> 649738455.4 | H7: =SUM('Billing Determinants'!H23:S23) -> 147542965.3 | I7: =SUM('Billing Determinants'!H24:S24) -> 15768705.6
B9: Present LIRAP Rates | D9: 0.00179 | E9: 0.0026 | F9: 0.00186 | G9: 0.00118 | H9: 0.00162 | I9: 0.021
B11: Present Annual LIRAP Revenue | C11: =SUM(D11:I11) -> 9969396.889 | D11: =D7*D9 -> 4594023.956 | E11: =E7*E9 -> 1770684.765 | F11: =F7*F9 -> 2439144.187 | G11: 766691.3774 | H11: 239019.6038 | I11: 159833
A13: UE-220053 | B13: Base Revenue | C13: =SUM(D13:I13) -> 574386944.7 | D13: ='Base Revenue'!F14*1000 -> 279484405.9 | E13: ='Base Revenue'!F16*1000 -> 84833839.71 | F13: ='Base Revenue'!F18*1000 -> 136399731.3 | G13: =('Base Revenue'!F20+'Base Revenue'!F22)*1000-14265000 -> 49983817.11 | H13: ='Base Revenue'!F24*1000 -> 16075572.79 | I13: ='Base Revenue'!F26*1000 -> 7609577.842
B15: Percentage of Current Base Volumetric Revenue | C15: =SUM(D15:I15) -> 1 | D15: =D13/$C$13 -> 0.4865786184 | E15: =E13/$C$13 -> 0.147694582 | F15: =F13/$C$13 -> 0.2374701106 | G15: =G13/$C$13 -> 0.08702115807 | H15: 0.02798735755 | I15: =I13/$C$13 -> 0.0132481734
B17: Revenue Requirement | C17: 21461824.63 | D17: =D7/C7 -> 0.4777588222
B19: Revenue Spread Based on Current Allocation | C19: =SUM(D19:I19) -> 21461824.63 | D19: =$C$17*D15 -> 10442864.98 | E19: =$C$17*E15 -> 3169795.218 | F19: =$C$17*F15 -> 5096541.868 | G19: =$C$17*G15 -> 1867632.833 | H19: 600659.7595 | I19: =$C$17*I15 -> 284329.9742
B21: LIRAP Revenue Increase <Decrease> | C21: =C19-C11 -> 11492427.74 | D21: =D19-D11 -> 5848841.02 | E21: =E19-E11 -> 1399110.453 | F21: =F19-F11 -> 2657397.681 | G21: =G19-G11 -> 1100941.456 | H21: =H19-H11 -> 361640.1557 | I21: 124496.9742
B23: Proposed LIRAP Rates | D23: =D19/D7 -> 0.004068922689 | E23: =E19/E7 -> 0.004654395707 | F23: 0.00388643194 | G23: 0.002874437888 | H23: 0.004071083689 | I23: =I19/I7 -> 0.0180312818
B25: Percentage Increase <Decrease> | C25: =C19/C11-1 -> 1.152770611 | D25: =D19/D11-1 -> 1.273141167 | E25: =E19/E11-1 -> 0.7901521949 | F25: =F19/F11-1 -> 1.089479538 | G25: =G19/G11-1 -> 1.435964312 | H25: =H19/H11-1 -> 1.513014623 | I25: =I19/I11-1 -> 0.7789190855
B27: Present Billed Revenue | C27: =SUM(D27:I27) -> 574128000 | D27: 268876000 | E27: 86893000 | F27: 130352000 | G27: 68027000 | H27: 13148000 | I27: 6832000
B29: Proposed Billed Revenue | C29: =SUM(D29:I29) -> 585620427.7 | D29: =D21+D27 -> 274724841 | E29: =E21+E27 -> 88292110.45 | F29: 133009397.7 | G29: =G21+G27 -> 69127941.46 | H29: =H21+H27 -> 13509640.16 | I29: =I21+I27 -> 6956496.974
B31: Overall Billed Percentage Increase <Decrease> | C31: =C29/C27-1 -> 0.02001718735 | D31: =D29/D27-1 -> 0.02175293079 | E31: =E29/E27-1 -> 0.01610153238 | F31: =F29/F27-1 -> 0.02038632074 | G31: =G29/G27-1 -> 0.01618388958 | H31: 0.02750533584 | I31: 0.01822262503
D33: =D23-D9 -> 0.002278922689 | E33: 0.002054395707 | F33: 0.00202643194 | G33: 0.001694437888 | H33: 0.002451083689
B34: Present LIRAP Revenue as a Percentage of Billed Revenue | C34: =C11/C27 -> 0.01736441506
B36: Proposed LIRAP Revenue as a Percentage of Billed Revenue | C36: =C17/C29 -> 0.03664801228
C38: Present | D38: Proposed | E38: Change
B39: Gross LIRAP Revenue | C39: =C11 -> 9969396.889 | D39: =C19 -> 21461824.63 | E39: =D39-C39 -> 11492427.74
B40: Revenue Conversion Factor | C40: ='Rev Conv Factor'!E22 -> 0.9560685519 | D40: ='Rev Conv Factor'!E22 -> 0.9560685519
B42: Net LIRAP Revenue | C42: =C39*C40 -> 9531426.846 | D42: =D39*D40 -> 20518975.59 | E42: =D42-C42 -> 10987548.75
C44: Present | D44: Proposed | E44: $ Change | F44: % Change
B45: Average Monthly Bill @ 932 kWh's - Increase <Decrease> | C45: =9+(800*C49)+((932-800)*C50) -> 91.66612 | D45: =9+(800*E49)+((932-800)*E50) -> 93.79108 | E45: =D45-C45 -> 2.12496 | F45: =E45/C45 -> 0.02318152006
C47: Present | D47: Change | E47: Proposed
B48: Basic Charge | C48: 9 | D48: 0 | E48: =C48+D48 -> 9
B49: First 800 kWh's | C49: 0.0866 | D49: =ROUND($D$23,5)-ROUND($D$9,5) -> 0.00228 | E49: =C49+D49 -> 0.08888
B50: 801 - 1500 kWh's | C50: 0.10141 | D50: =ROUND($D$23,5)-ROUND($D$9,5) -> 0.00228 | E50: =C50+D50 -> 0.10369
B51: Over 1500 kWh's | C51: 0.11962 | D51: =ROUND($D$23,5)-ROUND($D$9,5) -> 0.00228 | E51: 0.1219
C53: =C48+(800*C49)+(132*C50) -> 91.66612 | D53: =932*D49 -> 2.12496 | E53: =E48+(800*E49)+(132*E50) -> 93.79108
E55: =D53/C53 -> 0.02318152006

Sheet LIRAP Balance
B1: 2023 | C1: 2023 | D1: 2023 | E1: 2023 | F1: 2023 | G1: 2023 | H1: 2023 | I1: 2023 | J1: 2024 | K1: 2024 | L1: 2024 | M1: 2024 | N1: 2024 | O1: 2024 | P1: 2024 | Q1: 2024 | R1: 2024 | S1: 2024 | T1: 2024 | U1: 2024 | V1: 2025 | W1: 2025 | X1: 2025 | Y1: 2025 | Z1: 2025 | AA1: 2025 | AB1: 2025 | AC1: 2025 | AD1: 2025 | AE1: 2025
B2: End May | C2: End June | D2: End July | E2: End August | F2: End September | G2: End October | H2: End November | I2: End December | J2: End January | K2: End February | L2: End March | M2: End April | N2: End May | O2: End June | P2: End July | Q2: End August | R2: End September | S2: End October | T2: End November | U2: End December | V2: End January | W2: End February | X2: End March | Y2: End April | Z2: End May | AA2: End June | AB2: End July | AC2: End August | AD2: End September | AE2: End October
A3: Expected elec tariff rider revenue | C3: =-'Revenue By Month'!D39 -> -700427.9481 | D3: =-'Revenue By Month'!E39 -> -804493.2671 | E3: =-'Revenue By Month'!F39 -> -831212.8148 | F3: =-'Revenue By Month'!G39 -> -694124.7002 | G3: =-'Revenue By Month'!H39 -> -720544.2805 | H3: =-'Revenue By Month'!I39 -> -1811425.221 | I3: =-'Revenue By Month'!J39 -> -2051785.148 | J3: =-'Revenue By Month'!K39 -> -2078196.946 | K3: =-'Revenue By Month'!L39 -> -1840427.337 | L3: =-'Revenue By Month'!M39 -> -1717019.219 | M3: =-'Revenue By Month'!N39 -> -1515269.33 | N3: =-'Revenue By Month'!O39 -> -1460116.435 | O3: =-'Revenue By Month'!P39 -> -1511767.73 | P3: =-'Revenue By Month'!Q39 -> -1708609.609 | Q3: =-'Revenue By Month'!R39 -> -1776844.211 | R3: =-'Revenue By Month'!S39 -> -1495337.737 | S3: =-'Revenue By Month'!T39 -> -1552176.671 | T3: =-'Revenue By Month'!U39 -> -1785154.06 | U3: =-'Revenue By Month'!V39 -> -2046209.923 | V3: =-'Revenue By Month'!W39 -> -2080346.657 | W3: =-'Revenue By Month'!X39 -> -1846943.084 | X3: =-'Revenue By Month'!Y39 -> -1728744.349 | Y3: =-'Revenue By Month'!Z39 -> -1528809.78 | Z3: =-'Revenue By Month'!AA39 -> -1471485.386 | AA3: =-'Revenue By Month'!AB39 -> -1515658.577 | AB3: =-'Revenue By Month'!AC39 -> -1709619.741 | AC3: =-'Revenue By Month'!AD39 -> -1775980.126 | AD3: =-'Revenue By Month'!AE39 -> -1497067.995 | AE3: =-'Revenue By Month'!AF39 -> -1560146.341
A4: Expected LIRAP Expense | C4: ='LIRAP Expense Summary'!$B$48 -> 372000 | D4: ='LIRAP Expense Summary'!$B$48 -> 372000 | E4: ='LIRAP Expense Summary'!$B$48 -> 372000 | F4: ='LIRAP Expense Summary'!$B$48 -> 372000 | G4: ='LIRAP Expense Summary'!$D$33/12 -> 1481051.429 | H4: ='LIRAP Expense Summary'!$D$33/12 -> 1481051.429 | I4: ='LIRAP Expense Summary'!$D$33/12 -> 1481051.429 | J4: ='LIRAP Expense Summary'!$D$33/12 -> 1481051.429 | K4: ='LIRAP Expense Summary'!$D$33/12 -> 1481051.429 | L4: ='LIRAP Expense Summary'!$D$33/12 -> 1481051.429 | M4: ='LIRAP Expense Summary'!$D$33/12 -> 1481051.429 | N4: ='LIRAP Expense Summary'!$D$33/12 -> 1481051.429 | O4: ='LIRAP Expense Summary'!$D$33/12 -> 1481051.429 | P4: ='LIRAP Expense Summary'!$D$33/12 -> 1481051.429 | Q4: ='LIRAP Expense Summary'!$D$33/12 -> 1481051.429 | R4: ='LIRAP Expense Summary'!$D$33/12 -> 1481051.429 | S4: ='LIRAP Expense Summary'!$E$33/12 -> 2251254.904 | T4: ='LIRAP Expense Summary'!$E$33/12 -> 2251254.904 | U4: ='LIRAP Expense Summary'!$E$33/12 -> 2251254.904 | V4: ='LIRAP Expense Summary'!$E$33/12 -> 2251254.904 | W4: ='LIRAP Expense Summary'!$E$33/12 -> 2251254.904 | X4: ='LIRAP Expense Summary'!$E$33/12 -> 2251254.904 | Y4: ='LIRAP Expense Summary'!$E$33/12 -> 2251254.904 | Z4: ='LIRAP Expense Summary'!$E$33/12 -> 2251254.904 | AA4: ='LIRAP Expense Summary'!$E$33/12 -> 2251254.904 | AB4: ='LIRAP Expense Summary'!$E$33/12 -> 2251254.904 | AC4: ='LIRAP Expense Summary'!$E$33/12 -> 2251254.904 | AD4: ='LIRAP Expense Summary'!$E$33/12 -> 2251254.904 | AE4: ='LIRAP Expense Summary'!$F$33/12 -> 2628481.641
A5: Net change in balance | C5: =C3+C4 -> -328427.9481 | D5: =D3+D4 -> -432493.2671 | E5: =E3+E4 -> -459212.8148 | F5: -322124.7002 | G5: 760507.1484 | H5: -330373.7926 | I5: -570733.7192 | J5: -597145.517 | K5: -359375.9079 | L5: -235967.7898 | M5: -34217.90093 | N5: 20934.99373 | O5: -30716.30126 | P5: -227558.18 | Q5: -295792.7822 | R5: -14286.30851 | S5: =S3+S4 -> 699078.2332 | T5: 466100.8438 | U5: 205044.9812 | V5: 170908.2471 | W5: 404311.8203 | X5: 522510.5545 | Y5: 722445.1239 | Z5: 779769.5179 | AA5: 735596.3266 | AB5: 541635.1628 | AC5: 475274.7777 | AD5: 754186.9085 | AE5: =AE3+AE4 -> 1068335.3
A6: Accounting Adjustment
A7: Elec Tariff rider balance | B7: -4088213.01 | C7: =C5+C6+B7 -> -4416640.958 | D7: =D5+D6+C7 -> -4849134.225 | E7: =E5+E6+D7 -> -5308347.04 | F7: =F5+F6+E7 -> -5630471.74 | G7: =G5+G6+F7 -> -4869964.592 | H7: -5200338.384 | I7: -5771072.104 | J7: -6368217.621 | K7: -6727593.528 | L7: -6963561.318 | M7: -6997779.219 | N7: -6976844.226 | O7: -7007560.527 | P7: -7235118.707 | Q7: -7530911.489 | R7: =Q7+R5+R6 -> -7545197.798 | S7: =R7+S5+S6 -> -6846119.564 | T7: =S7+T5+T6 -> -6380018.721 | U7: -6174973.739 | V7: -6004065.492 | W7: -5599753.672 | X7: -5077243.117 | Y7: -4354797.994 | Z7: -3575028.476 | AA7: -2839432.149 | AB7: -2297796.986 | AC7: -1822522.209 | AD7: -1068335.3 | AE7: =AD7+AE5+AE6 -> 9.313225746e-10
A11: Forecasted End of October 2023 Balance | B11: =G7 -> -4869964.592 | C11: Overfunded "Rebate"
A12: November 2023 - October 2025 Expenditure Budget | B12: =SUM(H4:AE4) -> 45935106.21
A13: November 2023 - October 2025 Forecasted Revenue | B13: =SUM(H3:AE3) -> -41065141.61
B14: =SUM(C6:R6) -> 0
A15: Total Projected DSM Balance October 2025 | B15: =B11+B12+B14+B13 -> 0 | C15: (Overfunded)/Underfunded

Sheet LIRAP Expense Summary
A1: Washington LIRAP Spending Forecast
A2: Direct Service | D2: 23-24 PY (Existing Budget) | E2: 24-25 PY | F2: 25-26 PY | G2: 26-27 PY | H2: Allocations | K2: Arrearage Programs | L2: Oregon Actuals (Oct 22-May 23) | O2: Washington Forecast
A3: Customers | C3: 129500 | D3: =D4*$C$3 -> 47915 | E3: =E4*$C$3 -> 73815 | F3: =F4*$C$3 -> 86765 | G3: =G4*$C$3 -> 93240 | L3: Participants | M3: Avg. Benefit | O3: Participants | P3: Avg. Benefit | Q3: Total Benefit
A4: Saturation Forecast | B4: Benefit Per Customer Year One | C4: 1 | D4: 0.37 | E4: 0.57 | F4: 0.67 | G4: 0.72 | K4: AFP | L4: 1086 | M4: 496 | O4: =O6*O7 -> 3080 | P4: =P6*M7 -> 711.9617225 | Q4: =O4*P4 -> 2192842.105
A5: LIRAP Share Elec | B5: =D5/$D$3 -> 14.18973727 | C5: =M25*L15 -> 1837570.976 | D5: =C5*$D$4 -> 679901.2612 | E5: =C5*$E$4 -> 1047415.457 | F5: =C5*$F$4 -> 1231172.554 | G5: =C5*$G$4 -> 1323051.103 | H5: =SUM(D5:D12)/D24 -> 0.8280584015 | K5: AMP | L5: 491 | M5: 98 | O5: =O6*O8 -> 1400 | P5: =P6*M8 -> 140.6698565 | Q5: =O5*P5 -> 196937.799
A6: LIRAP Share Gas | B6: =D6/$D$3 -> 8.333655221 | C6: =M25*L16 -> 1079208.351 | D6: 399307.0899 | E6: 615148.7602 | F6: 723069.5953 | G6: 777030.0128 | K6: Avg Past Due | L6: 9629 | M6: 209 | O6: 28000 | P6: 300
A7: BD Elec | B7: 272.9049942 | C7: 35341196.75 | D7: 13076242.8 | E7: 20144482.15 | F7: 23678601.83 | G7: 25445661.66 | K7: AFP % | L7: =L4/L6 -> 0.1127842974 | M7: =M4/M6 -> 2.373205742 | O7: 0.11 | P7: =P4/P6 -> 2.373205742
A8: BD Gas | B8: 160.2775363 | C8: 20755940.95 | D8: 7679698.152 | E8: 11830886.34 | F8: 13906480.44 | G8: 14944277.48 | K8: AMP % | L8: =L5/L6 -> 0.05099179562 | M8: =M5/M6 -> 0.4688995215 | O8: 0.05 | P8: =P5/P6 -> 0.4688995215
A9: AFP Elec | B9: 10.66788051 | C9: =L15*Q4 -> 1381490.526 | D9: 511151.4947 | E9: 787449.6 | F9: 925598.6526 | G9: 994673.1789
A10: AFP Gas | B10: 6.265263158 | C10: =L16*Q4 -> 811351.5789 | D10: 300200.0842 | E10: 462470.4 | F10: 543605.5579 | G10: 584173.1368
A11: AMP Elec | B11: 0.9580757791 | C11: =L15*Q5 -> 124070.8134 | D11: 45906.20096 | E11: 70720.36364 | F11: 83127.44498 | G11: 89330.98565 | K11: Average Annual Bill | L11: Electric Only | M11: Dual Fuel | N11: Gas Only | O11: Overall
A12: AMP Gas | B12: =D12/$D$3 -> 0.5626794258 | C12: =L16*Q5 -> 72866.98565 | D12: 26960.78469 | E12: 41534.18182 | F12: 48820.88038 | G12: 52464.22967 | K12: Electric | L12: 1248 | M12: 1032 | N12: 0 | O12: 1128
A13: Other DS Elec | B13: =D13/$D$3 -> 22.40405698 | C13: =B13*C3 -> 2901325.378 | D13: 1073490.39 | E13: =B13*E3 -> 1653755.466 | F13: =B13*F3 -> 1943888.004 | G13: =B13*G3 -> 2088954.272 | H13: =SUM(D13:D14)/D24 -> 0.06210439506 | K13: Gas | L13: 0 | M13: 948 | N13: 888 | O13: 864
A14: Other DS Gas | B14: =D14/$D$3 -> 13.15793822 | C14: =B14*C3 -> 1703953 | D14: 630462.61 | E14: =B14*E3 -> 971253.21 | F14: =B14*F3 -> 1141648.51 | G14: =B14*G3 -> 1226846.16
A15: Direct Service Total | B15: 509.7218171 | C15: =SUM(C5:C14) -> 66008975.32 | D15: =SUM(D5:D14) -> 24423320.87 | E15: =SUM(E5:E14) -> 37625115.93 | F15: =SUM(F5:F14) -> 44226013.46 | G15: =SUM(G5:G14) -> 47526462.23 | H15: =SUM(H5,H13) -> 0.8901627966 | K15: Percent Electric | L15: 0.63
K16: Percent Gas | L16: 0.37
A17: Admin/Con-Ed/Outreach | C17: 1 | D17: 0.37 | E17: 0.57 | F17: 0.67 | G17: 0.72
A18: Agency Admin Elec | B18: =D18/$D$3 -> 31.14296149 | C18: =$C$3*B18 -> 4033013.514 | D18: 1492215 | E18: =$E$3*B18 -> 2298817.703 | F18: =$F$3*B18 -> 2702119.054 | G18: =$G$3*B18 -> 2903769.73 | H18: =SUM(D18:D19)/D24 -> 0.08755313823 | K18: LIRAP Share | L18: WA Actuals (Oct 2018-Sept 22)
A19: Agency Admin Gas | B19: =D19/$D$3 -> 18.99140144 | C19: =$C$3*B19 -> 2459386.486 | D19: 909973 | E19: =$E$3*B19 -> 1401850.297 | F19: =$F$3*B19 -> 1647788.946 | G19: =$G$3*B19 -> 1770758.27 | L19: Participants | M19: Total Benefit | N19: Average Benefit
A20: Agency Con-Ed Elec | B20: 7.926056558 | C20: 1026424.324 | D20: 379777 | E20: =$E$3*B20 -> 585061.8649 | F20: =$F$3*B20 -> 687704.2973 | G20: =$G$3*B20 -> 739025.5135 | H20: =SUM(D20:D21)/D24 -> 0.02228406521 | K20: 18-19 PY | L20: 10211 | M20: 2957944.14 | N20: =M20/L20 -> 289.6821212
A21: Agency Con-Ed Gas | B21: 4.834164667 | C21: 626024.3243 | D21: 231629 | E21: =$E$3*B21 -> 356833.8649 | F21: 419436.2973 | G21: 450737.5135 | K21: 19-20 PY | L21: 11996 | M21: 3528478.38 | N21: =M21/L21 -> 294.137911
A22: Admin/Con-Ed/Outreach Total | B22: =SUM(B18:B21) -> 62.89458416 | C22: 8144848.649 | D22: 3013594 | E22: 4642563.73 | F22: 5457048.595 | G22: 5864291.027 | H22: =D22/D24 -> 0.1098372034 | K22: 20-21 PY | L22: 7337 | M22: 2306538.34 | N22: 314.3707701
K23: 21-22 | L23: 8978 | M23: 2874156.45 | N23: 320.1332646
A24: LIRAP Total | B24: =B15+B22 -> 572.6164013 | C24: =SUM(C15,C22) -> 74153823.96 | D24: =SUM(D15,D22) -> 27436914.87 | E24: =SUM(E15,E22) -> 42267679.66 | F24: =SUM(F15,F22) -> 49683062.06 | G24: =SUM(G15,G22) -> 53390753.25 | H24: =D24/D29 -> 0.9710695961 | K24: Total | L24: =SUM(L20:L23) -> 38522 | M24: =SUM(M20:M23) -> 11667117.31 | N24: 302.8689401
A25: Avista Outreach Elec | B25: =D25/$D$3 -> 9.203798393 | C25: 63000 | D25: 441000 | E25: 315000 | F25: 157500 | G25: 157500 | H25: =SUM(D26,D25)/D29 -> 0.02477496907 | K25: Avg | L25: =AVERAGE(L20:L23) -> 9630.5 | M25: =AVERAGE(M20:M23) -> 2916779.327 | N25: =M25/L25 -> 302.8689401
A26: Avista Outreach Gas | B26: =D26/D3 -> 5.405405405 | C26: 37000 | D26: 259000 | E26: 185000 | F26: 92500 | G26: 92500
A27: Avista Con-Ed Electric | B27: =D27/D3 -> 1.522132944 | C27: =$C$3*B27 -> 197116.2162 | D27: 72933 | E27: =$E$3*B27 -> 112356.2432 | F27: =$F$3*B27 -> 132067.8649 | G27: =$G$3*B27 -> 141923.6757 | H27: =SUM(D27:D28)/D29 -> 0.004155434777
A28: Avista Con-Ed Gas | B28: =D28/D3 -> 0.9282270688 | C28: =$C$3*B28 -> 120205.4054 | D28: 44476 | E28: =$E$3*B28 -> 68517.08108 | F28: =$F$3*B28 -> 80537.62162 | G28: =$G$3*B28 -> 86547.89189
A29: LIRAP Grand Total | B29: =D29/D3 -> 589.6759651 | C29: =SUM(C24:C28) -> 74571145.59 | D29: =SUM(D24:D28) -> 28254323.87 | E29: =SUM(E24:E28) -> 42948552.98 | F29: =SUM(F24:F28) -> 50145667.54 | G29: =SUM(G24:G28) -> 53869224.82 | H29: =SUM(H24:H27) -> 1
A30: Percent of Increase from Previous PY | D30: =D24/13716004 -> 2.000357748 | E30: =E24/D24 -> 1.540540541 | F30: =F24/E24 -> 1.175438596 | G30: =G24/F24 -> 1.074626866
A31: LIRAP Outreach % of LIRAP Total | D31: =SUM(D25:D26)/D29 -> 0.02477496907 | E31: =SUM(E25:E26)/E29 -> 0.01164183576 | F31: 0.00498547556 | G31: 0.004640868712
C33: Annual Electric (Oct - Sep) | D33: =D5+D7+D9+D11+D13+D18+D20+D25+D27 -> 17772617.15 | E33: 27015058.85 | F33: 31541779.7 | G33: 33883890.12
C34: Annual Natural Gas (Oct - Sep) | D34: 10481706.72 | E34: 15933494.14 | F34: 18603887.85 | G34: 19985334.7
D35: =D29-D33-D34 -> 0 | E35: =E29-E33-E34 -> 0 | F35: =F29-F33-F34 -> 0 | G35: =G29-G33-G34 -> 0
D37: =D33-9900000 -> 7872617.146 | E37: =E33-D33 -> 9242441.701 | F37: =F33-E33 -> 4526720.85 | G37: =G33-F33 -> 2342110.425
A38: Estimated Total LIRAP Costs June-Sept 2023
A39: Direct Service Electric | B39: 882000
A40: Direct Service Gas | B40: 518000
A41: Admin Electric | B41: 465000
A42: Admin Gas | B42: 283500
A43: Con-Ed Electric | B43: 141000
A44: Con-Ed Gas | B44: 86000
A45: Total | B45: 2375500
A47: Monthly Gas | B47: =(B40+B42+B44)/4 -> 221875
A48: Monthly Electric | B48: =(B39+B41+B43)/4 -> 372000

Sheet Revenue By Month
A4: Forecasted Usage | D4: ='Billing Determinants'!C7 -> 2023-06-30 | E4: ='Billing Determinants'!D7 -> 2023-07-30 | F4: ='Billing Determinants'!E7 -> 2023-08-30 | G4: ='Billing Determinants'!F7 -> 2023-09-30 | H4: ='Billing Determinants'!G7 -> 2023-10-30 | I4: ='Billing Determinants'!H7 -> 2023-11-30 | J4: ='Billing Determinants'!I7 -> 2023-12-30 | K4: ='Billing Determinants'!J7 -> 2024-01-30 | L4: ='Billing Determinants'!K7 -> 2024-02-29 | M4: ='Billing Determinants'!L7 -> 2024-03-29 | N4: ='Billing Determinants'!M7 -> 2024-04-29 | O4: ='Billing Determinants'!N7 -> 2024-05-29 | P4: ='Billing Determinants'!O7 -> 2024-06-29 | Q4: ='Billing Determinants'!P7 -> 2024-07-29 | R4: ='Billing Determinants'!Q7 -> 2024-08-29 | S4: ='Billing Determinants'!R7 -> 2024-09-29 | T4: ='Billing Determinants'!S7 -> 2024-10-29 | U4: ='Billing Determinants'!T7 -> 2024-11-29 | V4: ='Billing Determinants'!U7 -> 2024-12-29 | W4: ='Billing Determinants'!V7 -> 2025-01-29 | X4: ='Billing Determinants'!W7 -> 2025-02-28 | Y4: ='Billing Determinants'!X7 -> 2025-03-28 | Z4: ='Billing Determinants'!Y7 -> 2025-04-28 | AA4: ='Billing Determinants'!Z7 -> 2025-05-28 | AB4: ='Billing Determinants'!AA7 -> 2025-06-28 | AC4: ='Billing Determinants'!AB7 -> 2025-07-28 | AD4: ='Billing Determinants'!AC7 -> 2025-08-28 | AE4: ='Billing Determinants'!AD7 -> 2025-09-28 | AF4: ='Billing Determinants'!AE7 -> 2025-10-28
B5: Residential Schedule 001 | D5: ='Billing Determinants'!C19 -> 160941418 | E5: ='Billing Determinants'!D19 -> 197645054.7 | F5: ='Billing Determinants'!E19 -> 215312715.7 | G5: ='Billing Determinants'!F19 -> 164997274.2 | H5: ='Billing Determinants'!G19 -> 174286500.8 | I5: ='Billing Determinants'!H19 -> 234525843.5 | J5: ='Billing Determinants'!I19 -> 296065569.1 | K5: ='Billing Determinants'!J19 -> 301068009.9 | L5: ='Billing Determinants'!K19 -> 256082725.4 | M5: ='Billing Determinants'!L19 -> 226605597.2 | N5: ='Billing Determinants'!M19 -> 183472299.4 | O5: ='Billing Determinants'!N19 -> 164874724.1 | P5: ='Billing Determinants'!O19 -> 161940708.9 | Q5: ='Billing Determinants'!P19 -> 192654753.8 | R5: ='Billing Determinants'!Q19 -> 209230183.3 | S5: ='Billing Determinants'!R19 -> 164727421 | T5: ='Billing Determinants'!S19 -> 175245994.3 | U5: ='Billing Determinants'!T19 -> 229506860.1 | V5: ='Billing Determinants'!U19 -> 296751715.3 | W5: ='Billing Determinants'!V19 -> 301319028.4 | X5: ='Billing Determinants'!W19 -> 258786464.4 | Y5: ='Billing Determinants'!X19 -> 230829273.9 | Z5: ='Billing Determinants'!Y19 -> 188039688.2 | AA5: ='Billing Determinants'!Z19 -> 169429211.1 | AB5: ='Billing Determinants'!AA19 -> 164447451.1 | AC5: ='Billing Determinants'!AB19 -> 192694972.7 | AD5: ='Billing Determinants'!AC19 -> 209235032.7 | AE5: ='Billing Determinants'!AD19 -> 165921660.3 | AF5: ='Billing Determinants'!AE19 -> 177452832.5
B6: General Svc Schedule 011/012 | D6: ='Billing Determinants'!C20 -> 49924812.13 | E6: ='Billing Determinants'!D20 -> 57841149.86 | F6: ='Billing Determinants'!E20 -> 57463057.65 | G6: ='Billing Determinants'!F20 -> 50961451.09 | H6: ='Billing Determinants'!G20 -> 52610983.64 | I6: ='Billing Determinants'!H20 -> 60125198.46 | J6: ='Billing Determinants'!I20 -> 67650883.03 | K6: ='Billing Determinants'!J20 -> 66247615.83 | L6: ='Billing Determinants'!K20 -> 60720051.41 | M6: ='Billing Determinants'!L20 -> 57562595.94 | N6: ='Billing Determinants'!M20 -> 50253689.01 | O6: ='Billing Determinants'!N20 -> 48756823.95 | P6: ='Billing Determinants'!O20 -> 50150285.66 | Q6: ='Billing Determinants'!P20 -> 57939518.28 | R6: ='Billing Determinants'!Q20 -> 57580646.77 | S6: ='Billing Determinants'!R20 -> 51005941.62 | T6: ='Billing Determinants'!S20 -> 53039351.82 | U6: ='Billing Determinants'!T20 -> 60433825.46 | V6: ='Billing Determinants'!U20 -> 67858465.52 | W6: ='Billing Determinants'!V20 -> 67407161.92 | X6: ='Billing Determinants'!W20 -> 61509696.41 | Y6: ='Billing Determinants'!X20 -> 58561330.65 | Z6: ='Billing Determinants'!Y20 -> 50884752.1 | AA6: ='Billing Determinants'!Z20 -> 49542879.4 | AB6: ='Billing Determinants'!AA20 -> 50909688.88 | AC6: ='Billing Determinants'!AB20 -> 58889730.7 | AD6: ='Billing Determinants'!AC20 -> 58587954.42 | AE6: ='Billing Determinants'!AD20 -> 51564173.86 | AF6: ='Billing Determinants'!AE20 -> 53921124.11
B7: Large Gen Svc Schedule 021/022 | D7: ='Billing Determinants'!C21 -> 110568779.2 | E7: ='Billing Determinants'!D21 -> 121545413.7 | F7: ='Billing Determinants'!E21 -> 113002985.9 | G7: ='Billing Determinants'!F21 -> 104303297.7 | H7: ='Billing Determinants'!G21 -> 115439117.3 | I7: ='Billing Determinants'!H21 -> 118065216.1 | J7: ='Billing Determinants'!I21 -> 114369567 | K7: ='Billing Determinants'!J21 -> 109624856.6 | L7: ='Billing Determinants'!K21 -> 106483802.4 | M7: ='Billing Determinants'!L21 -> 103997754 | N7: ='Billing Determinants'!M21 -> 100442286.9 | O7: ='Billing Determinants'!N21 -> 104796165.9 | P7: ='Billing Determinants'!O21 -> 108687782.7 | Q7: ='Billing Determinants'!P21 -> 118782462.4 | R7: ='Billing Determinants'!Q21 -> 110441390.9 | S7: ='Billing Determinants'!R21 -> 102019619.4 | T7: ='Billing Determinants'!S21 -> 113656938.3 | U7: ='Billing Determinants'!T21 -> 116010401 | V7: ='Billing Determinants'!U21 -> 112600132.7 | W7: ='Billing Determinants'!V21 -> 109175928.3 | X7: ='Billing Determinants'!W21 -> 105119656 | Y7: ='Billing Determinants'!X21 -> 102944807.4 | Z7: ='Billing Determinants'!Y21 -> 98776755.33 | AA7: ='Billing Determinants'!Z21 -> 103397131.6 | AB7: ='Billing Determinants'!AA21 -> 107630371.2 | AC7: ='Billing Determinants'!AB21 -> 118108877.5 | AD7: ='Billing Determinants'!AC21 -> 110061469.6 | AE7: ='Billing Determinants'!AD21 -> 100650733.5 | AF7: ='Billing Determinants'!AE21 -> 112332372.2
B8: Extra Large Gen Schedule 25/25I (1st & 2nd Block Only) | D8: ='Billing Determinants'!C22 -> 57838091 | E8: ='Billing Determinants'!D22 -> 53502955.4 | F8: ='Billing Determinants'!E22 -> 60430912.8 | G8: ='Billing Determinants'!F22 -> 50534307.4 | H8: ='Billing Determinants'!G22 -> 52769328 | I8: ='Billing Determinants'!H22 -> 57591762 | J8: ='Billing Determinants'!I22 -> 49831570 | K8: ='Billing Determinants'!J22 -> 60425160.6 | L8: ='Billing Determinants'!K22 -> 50766954 | M8: ='Billing Determinants'!L22 -> 55739145.2 | N8: ='Billing Determinants'!M22 -> 57763064 | O8: ='Billing Determinants'!N22 -> 50780495 | P8: ='Billing Determinants'!O22 -> 54466029 | Q8: ='Billing Determinants'!P22 -> 51128029.4 | R8: ='Billing Determinants'!Q22 -> 59757273.8 | S8: ='Billing Determinants'!R22 -> 50316026.4 | T8: ='Billing Determinants'!S22 -> 51172946 | U8: ='Billing Determinants'!T22 -> 57152985 | V8: ='Billing Determinants'!U22 -> 49027012 | W8: ='Billing Determinants'!V22 -> 59506312.6 | X8: ='Billing Determinants'!W22 -> 50054920 | Y8: ='Billing Determinants'!X22 -> 54053229.2 | Z8: ='Billing Determinants'!Y22 -> 57717280 | AA8: ='Billing Determinants'!Z22 -> 49911639 | AB8: ='Billing Determinants'!AA22 -> 53742315 | AC8: ='Billing Determinants'!AB22 -> 50736511.4 | AD8: ='Billing Determinants'!AC22 -> 58638031.8 | AE8: ='Billing Determinants'!AD22 -> 50343797.4 | AF8: ='Billing Determinants'!AE22 -> 50491311
B9: Pumping Schedule 31/32 | D9: ='Billing Determinants'!C23 -> 20688119.21 | E9: ='Billing Determinants'!D23 -> 25188520.95 | F9: ='Billing Determinants'!E23 -> 28129044.85 | G9: ='Billing Determinants'!F23 -> 22860656.55 | H9: ='Billing Determinants'!G23 -> 12595653.49 | I9: ='Billing Determinants'!H23 -> 2987530.235 | J9: ='Billing Determinants'!I23 -> 3599598.811 | K9: ='Billing Determinants'!J23 -> 4033817.868 | L9: ='Billing Determinants'!K23 -> 4346048.848 | M9: ='Billing Determinants'!L23 -> 4211350.177 | N9: ='Billing Determinants'!M23 -> 6079694.994 | O9: ='Billing Determinants'!N23 -> 12963978.89 | P9: ='Billing Determinants'!O23 -> 21184876.05 | Q9: ='Billing Determinants'!P23 -> 24869572.05 | R9: ='Billing Determinants'!Q23 -> 28118442.94 | S9: ='Billing Determinants'!R23 -> 22471286.69 | T9: ='Billing Determinants'!S23 -> 12676767.75 | U9: ='Billing Determinants'!T23 -> 3292229.773 | V9: ='Billing Determinants'!U23 -> 3645231.991 | W9: ='Billing Determinants'!V23 -> 4155598.856 | X9: ='Billing Determinants'!W23 -> 4320894.923 | Y9: ='Billing Determinants'!X23 -> 4169094.839 | Z9: ='Billing Determinants'!Y23 -> 5993324.375 | AA9: ='Billing Determinants'!Z23 -> 12486044.24 | AB9: ='Billing Determinants'!AA23 -> 20444516.3 | AC9: ='Billing Determinants'!AB23 -> 25024010.69 | AD9: ='Billing Determinants'!AC23 -> 28007745.99 | AE9: ='Billing Determinants'!AD23 -> 22484833.23 | AF9: ='Billing Determinants'!AE23 -> 13361188.24
B10: Street and Area Lights* | D10: 347685.9388 | E10: 346419.8538 | F10: 358587.3505 | G10: 357429.8946 | H10: 357259.3565 | I10: ='Billing Determinants'!H24 -> 1330329.701 | J10: ='Billing Determinants'!I24 -> 1338864.115 | K10: ='Billing Determinants'!J24 -> 1340188.065 | L10: ='Billing Determinants'!K24 -> 1272098.586 | M10: ='Billing Determinants'!L24 -> 1353925.382 | N10: ='Billing Determinants'!M24 -> 1292839.656 | O10: ='Billing Determinants'!N24 -> 1297017.579 | P10: ='Billing Determinants'!O24 -> 1313152.508 | Q10: ='Billing Determinants'!P24 -> 1314340.399 | R10: ='Billing Determinants'!Q24 -> 1313371.656 | S10: ='Billing Determinants'!R24 -> 1318741.236 | T10: ='Billing Determinants'!S24 -> 1283836.714 | U10: ='Billing Determinants'!T24 -> 1303362.031 | V10: ='Billing Determinants'!U24 -> 1306376.54 | W10: ='Billing Determinants'!V24 -> 1324673.318 | X10: ='Billing Determinants'!W24 -> 1249320.633 | Y10: ='Billing Determinants'!X24 -> 1328407.076 | Z10: ='Billing Determinants'!Y24 -> 1270504.385 | AA10: ='Billing Determinants'!Z24 -> 1273798.087 | AB10: ='Billing Determinants'!AA24 -> 1287598.232 | AC10: ='Billing Determinants'!AB24 -> 1291310.38 | AD10: ='Billing Determinants'!AC24 -> 1287442.068 | AE10: ='Billing Determinants'!AD24 -> 1293084.101 | AF10: ='Billing Determinants'!AE24 -> 1260162.708
A11: Total Forecasted Usage | D11: =SUM(D5:D10) -> 400308905.4 | E11: =SUM(E5:E10) -> 456069514.5 | F11: 474697304.3 | G11: 394014416.8 | H11: 408058842.5 | I11: 474625880 | J11: 532856052.1 | K11: 542739648.8 | L11: 479671680.7 | M11: 449470367.9 | N11: 399303874 | O11: 383469205.4 | P11: =SUM(P5:P10) -> 397742834.8 | Q11: 446688676.3 | R11: 466441309.4 | S11: 391859036.3 | T11: =SUM(T5:T10) -> 407075835 | U11: 467699663.4 | V11: 531188934 | W11: 542888703.4 | X11: 481040952.4 | Y11: 451886143.1 | Z11: 402682304.4 | AA11: 386040703.4 | AB11: 398461940.7 | AC11: 446745413.3 | AD11: 465817676.7 | AE11: 392258282.4 | AF11: =SUM(AF5:AF10) -> 408818990.8
I12: =I11-'Billing Determinants'!H25 -> 0 | J12: =J11-'Billing Determinants'!I25 -> 0 | K12: =K11-'Billing Determinants'!J25 -> 0 | L12: =L11-'Billing Determinants'!K25 -> 0 | M12: =M11-'Billing Determinants'!L25 -> 0 | N12: =N11-'Billing Determinants'!M25 -> 0 | O12: =O11-'Billing Determinants'!N25 -> 0 | P12: =P11-'Billing Determinants'!O25 -> 0 | Q12: =Q11-'Billing Determinants'!P25 -> 0 | R12: =R11-'Billing Determinants'!Q25 -> 0 | S12: =S11-'Billing Determinants'!R25 -> 0 | T12: =T11-'Billing Determinants'!S25 -> 0 | U12: =U11-'Billing Determinants'!T25 -> 0 | V12: =V11-'Billing Determinants'!U25 -> 0 | W12: =W11-'Billing Determinants'!V25 -> 0 | X12: =X11-'Billing Determinants'!W25 -> 0 | Y12: =Y11-'Billing Determinants'!X25 -> 0 | Z12: =Z11-'Billing Determinants'!Y25 -> 0 | AA12: =AA11-'Billing Determinants'!Z25 -> 0 | AB12: =AB11-'Billing Determinants'!AA25 -> 0 | AC12: =AC11-'Billing Determinants'!AB25 -> 0 | AD12: =AD11-'Billing Determinants'!AC25 -> 0 | AE12: =AE11-'Billing Determinants'!AD25 -> 0 | AF12: =AF11-'Billing Determinants'!AE25 -> 0
A13: *Current LIRAP rate for street and area lights is a percentage of base revenue. Therefore, forecasted base revenue by month is included for June 2023 - October 2023 before new rates go into effect November 1, 2023 at a per kwh rate.
A14: LIRAP Rates
B15: Residential Schedule 001 | D15: ='WA Electric - Sched 92'!D9 -> 0.00179 | E15: =D15 -> 0.00179 | F15: =E15 -> 0.00179 | G15: =F15 -> 0.00179 | H15: =G15 -> 0.00179 | I15: ='WA Electric - Sched 92'!$D$23 -> 0.004068922689 | J15: ='WA Electric - Sched 92'!$D$23 -> 0.004068922689 | K15: ='WA Electric - Sched 92'!$D$23 -> 0.004068922689 | L15: ='WA Electric - Sched 92'!$D$23 -> 0.004068922689 | M15: ='WA Electric - Sched 92'!$D$23 -> 0.004068922689 | N15: ='WA Electric - Sched 92'!$D$23 -> 0.004068922689 | O15: ='WA Electric - Sched 92'!$D$23 -> 0.004068922689 | P15: ='WA Electric - Sched 92'!$D$23 -> 0.004068922689 | Q15: ='WA Electric - Sched 92'!$D$23 -> 0.004068922689 | R15: ='WA Electric - Sched 92'!$D$23 -> 0.004068922689 | S15: ='WA Electric - Sched 92'!$D$23 -> 0.004068922689 | T15: ='WA Electric - Sched 92'!$D$23 -> 0.004068922689 | U15: ='WA Electric - Sched 92'!$D$23 -> 0.004068922689 | V15: ='WA Electric - Sched 92'!$D$23 -> 0.004068922689 | W15: ='WA Electric - Sched 92'!$D$23 -> 0.004068922689 | X15: ='WA Electric - Sched 92'!$D$23 -> 0.004068922689 | Y15: ='WA Electric - Sched 92'!$D$23 -> 0.004068922689 | Z15: ='WA Electric - Sched 92'!$D$23 -> 0.004068922689 | AA15: ='WA Electric - Sched 92'!$D$23 -> 0.004068922689 | AB15: ='WA Electric - Sched 92'!$D$23 -> 0.004068922689 | AC15: ='WA Electric - Sched 92'!$D$23 -> 0.004068922689 | AD15: ='WA Electric - Sched 92'!$D$23 -> 0.004068922689 | AE15: ='WA Electric - Sched 92'!$D$23 -> 0.004068922689 | AF15: ='WA Electric - Sched 92'!$D$23 -> 0.004068922689
B16: General Svc Schedule 011/012 | D16: ='WA Electric - Sched 92'!E9 -> 0.0026 | E16: =D16 -> 0.0026 | F16: 0.0026 | G16: =F16 -> 0.0026 | H16: 0.0026 | I16: ='WA Electric - Sched 92'!$E$23 -> 0.004654395707 | J16: ='WA Electric - Sched 92'!$E$23 -> 0.004654395707 | K16: ='WA Electric - Sched 92'!$E$23 -> 0.004654395707 | L16: ='WA Electric - Sched 92'!$E$23 -> 0.004654395707 | M16: ='WA Electric - Sched 92'!$E$23 -> 0.004654395707 | N16: ='WA Electric - Sched 92'!$E$23 -> 0.004654395707 | O16: ='WA Electric - Sched 92'!$E$23 -> 0.004654395707 | P16: ='WA Electric - Sched 92'!$E$23 -> 0.004654395707 | Q16: ='WA Electric - Sched 92'!$E$23 -> 0.004654395707 | R16: ='WA Electric - Sched 92'!$E$23 -> 0.004654395707 | S16: ='WA Electric - Sched 92'!$E$23 -> 0.004654395707 | T16: ='WA Electric - Sched 92'!$E$23 -> 0.004654395707 | U16: ='WA Electric - Sched 92'!$E$23 -> 0.004654395707 | V16: ='WA Electric - Sched 92'!$E$23 -> 0.004654395707 | W16: ='WA Electric - Sched 92'!$E$23 -> 0.004654395707 | X16: ='WA Electric - Sched 92'!$E$23 -> 0.004654395707 | Y16: ='WA Electric - Sched 92'!$E$23 -> 0.004654395707 | Z16: ='WA Electric - Sched 92'!$E$23 -> 0.004654395707 | AA16: ='WA Electric - Sched 92'!$E$23 -> 0.004654395707 | AB16: ='WA Electric - Sched 92'!$E$23 -> 0.004654395707 | AC16: ='WA Electric - Sched 92'!$E$23 -> 0.004654395707 | AD16: ='WA Electric - Sched 92'!$E$23 -> 0.004654395707 | AE16: ='WA Electric - Sched 92'!$E$23 -> 0.004654395707 | AF16: ='WA Electric - Sched 92'!$E$23 -> 0.004654395707
B17: Large Gen Svc Schedule 021/022 | D17: ='WA Electric - Sched 92'!F9 -> 0.00186 | E17: 0.00186 | F17: 0.00186 | G17: =F17 -> 0.00186 | H17: 0.00186 | I17: ='WA Electric - Sched 92'!$F$23 -> 0.00388643194 | J17: ='WA Electric - Sched 92'!$F$23 -> 0.00388643194 | K17: ='WA Electric - Sched 92'!$F$23 -> 0.00388643194 | L17: ='WA Electric - Sched 92'!$F$23 -> 0.00388643194 | M17: ='WA Electric - Sched 92'!$F$23 -> 0.00388643194 | N17: ='WA Electric - Sched 92'!$F$23 -> 0.00388643194 | O17: ='WA Electric - Sched 92'!$F$23 -> 0.00388643194 | P17: ='WA Electric - Sched 92'!$F$23 -> 0.00388643194 | Q17: ='WA Electric - Sched 92'!$F$23 -> 0.00388643194 | R17: ='WA Electric - Sched 92'!$F$23 -> 0.00388643194 | S17: ='WA Electric - Sched 92'!$F$23 -> 0.00388643194 | T17: ='WA Electric - Sched 92'!$F$23 -> 0.00388643194 | U17: ='WA Electric - Sched 92'!$F$23 -> 0.00388643194 | V17: ='WA Electric - Sched 92'!$F$23 -> 0.00388643194 | W17: ='WA Electric - Sched 92'!$F$23 -> 0.00388643194 | X17: ='WA Electric - Sched 92'!$F$23 -> 0.00388643194 | Y17: ='WA Electric - Sched 92'!$F$23 -> 0.00388643194 | Z17: ='WA Electric - Sched 92'!$F$23 -> 0.00388643194 | AA17: ='WA Electric - Sched 92'!$F$23 -> 0.00388643194 | AB17: ='WA Electric - Sched 92'!$F$23 -> 0.00388643194 | AC17: ='WA Electric - Sched 92'!$F$23 -> 0.00388643194 | AD17: ='WA Electric - Sched 92'!$F$23 -> 0.00388643194 | AE17: ='WA Electric - Sched 92'!$F$23 -> 0.00388643194 | AF17: ='WA Electric - Sched 92'!$F$23 -> 0.00388643194
B18: Extra Large Gen Schedule 25/25I (1st & 2nd Block Only) | D18: ='WA Electric - Sched 92'!G9 -> 0.00118 | E18: 0.00118 | F18: 0.00118 | G18: =F18 -> 0.00118 | H18: 0.00118 | I18: ='WA Electric - Sched 92'!$G$23 -> 0.002874437888 | J18: ='WA Electric - Sched 92'!$G$23 -> 0.002874437888 | K18: ='WA Electric - Sched 92'!$G$23 -> 0.002874437888 | L18: ='WA Electric - Sched 92'!$G$23 -> 0.002874437888 | M18: ='WA Electric - Sched 92'!$G$23 -> 0.002874437888 | N18: ='WA Electric - Sched 92'!$G$23 -> 0.002874437888 | O18: ='WA Electric - Sched 92'!$G$23 -> 0.002874437888 | P18: ='WA Electric - Sched 92'!$G$23 -> 0.002874437888 | Q18: ='WA Electric - Sched 92'!$G$23 -> 0.002874437888 | R18: ='WA Electric - Sched 92'!$G$23 -> 0.002874437888 | S18: ='WA Electric - Sched 92'!$G$23 -> 0.002874437888 | T18: ='WA Electric - Sched 92'!$G$23 -> 0.002874437888 | U18: ='WA Electric - Sched 92'!$G$23 -> 0.002874437888 | V18: ='WA Electric - Sched 92'!$G$23 -> 0.002874437888 | W18: ='WA Electric - Sched 92'!$G$23 -> 0.002874437888 | X18: ='WA Electric - Sched 92'!$G$23 -> 0.002874437888 | Y18: ='WA Electric - Sched 92'!$G$23 -> 0.002874437888 | Z18: ='WA Electric - Sched 92'!$G$23 -> 0.002874437888 | AA18: ='WA Electric - Sched 92'!$G$23 -> 0.002874437888 | AB18: ='WA Electric - Sched 92'!$G$23 -> 0.002874437888 | AC18: ='WA Electric - Sched 92'!$G$23 -> 0.002874437888 | AD18: ='WA Electric - Sched 92'!$G$23 -> 0.002874437888 | AE18: ='WA Electric - Sched 92'!$G$23 -> 0.002874437888 | AF18: ='WA Electric - Sched 92'!$G$23 -> 0.002874437888
B19: Pumping Schedule 31/32 | D19: ='WA Electric - Sched 92'!H9 -> 0.00162 | E19: 0.00162 | F19: 0.00162 | G19: =F19 -> 0.00162 | H19: 0.00162 | I19: ='WA Electric - Sched 92'!$H$23 -> 0.004071083689 | J19: ='WA Electric - Sched 92'!$H$23 -> 0.004071083689 | K19: ='WA Electric - Sched 92'!$H$23 -> 0.004071083689 | L19: ='WA Electric - Sched 92'!$H$23 -> 0.004071083689 | M19: ='WA Electric - Sched 92'!$H$23 -> 0.004071083689 | N19: ='WA Electric - Sched 92'!$H$23 -> 0.004071083689 | O19: ='WA Electric - Sched 92'!$H$23 -> 0.004071083689 | P19: ='WA Electric - Sched 92'!$H$23 -> 0.004071083689 | Q19: ='WA Electric - Sched 92'!$H$23 -> 0.004071083689 | R19: ='WA Electric - Sched 92'!$H$23 -> 0.004071083689 | S19: ='WA Electric - Sched 92'!$H$23 -> 0.004071083689 | T19: ='WA Electric - Sched 92'!$H$23 -> 0.004071083689 | U19: ='WA Electric - Sched 92'!$H$23 -> 0.004071083689 | V19: ='WA Electric - Sched 92'!$H$23 -> 0.004071083689 | W19: ='WA Electric - Sched 92'!$H$23 -> 0.004071083689 | X19: ='WA Electric - Sched 92'!$H$23 -> 0.004071083689 | Y19: ='WA Electric - Sched 92'!$H$23 -> 0.004071083689 | Z19: ='WA Electric - Sched 92'!$H$23 -> 0.004071083689 | AA19: ='WA Electric - Sched 92'!$H$23 -> 0.004071083689 | AB19: ='WA Electric - Sched 92'!$H$23 -> 0.004071083689 | AC19: ='WA Electric - Sched 92'!$H$23 -> 0.004071083689 | AD19: ='WA Electric - Sched 92'!$H$23 -> 0.004071083689 | AE19: ='WA Electric - Sched 92'!$H$23 -> 0.004071083689 | AF19: ='WA Electric - Sched 92'!$H$23 -> 0.004071083689
B20: Street and Area Lights | D20: ='WA Electric - Sched 92'!I9 -> 0.021 | E20: 0.021 | F20: 0.021 | G20: =F20 -> 0.021 | H20: 0.021 | I20: ='WA Electric - Sched 92'!$I$23 -> 0.0180312818 | J20: ='WA Electric - Sched 92'!$I$23 -> 0.0180312818 | K20: ='WA Electric - Sched 92'!$I$23 -> 0.0180312818 | L20: ='WA Electric - Sched 92'!$I$23 -> 0.0180312818 | M20: ='WA Electric - Sched 92'!$I$23 -> 0.0180312818 | N20: ='WA Electric - Sched 92'!$I$23 -> 0.0180312818 | O20: ='WA Electric - Sched 92'!$I$23 -> 0.0180312818 | P20: ='WA Electric - Sched 92'!$I$23 -> 0.0180312818 | Q20: ='WA Electric - Sched 92'!$I$23 -> 0.0180312818 | R20: ='WA Electric - Sched 92'!$I$23 -> 0.0180312818 | S20: ='WA Electric - Sched 92'!$I$23 -> 0.0180312818 | T20: ='WA Electric - Sched 92'!$I$23 -> 0.0180312818 | U20: ='WA Electric - Sched 92'!$I$23 -> 0.0180312818 | V20: ='WA Electric - Sched 92'!$I$23 -> 0.0180312818 | W20: ='WA Electric - Sched 92'!$I$23 -> 0.0180312818 | X20: ='WA Electric - Sched 92'!$I$23 -> 0.0180312818 | Y20: ='WA Electric - Sched 92'!$I$23 -> 0.0180312818 | Z20: ='WA Electric - Sched 92'!$I$23 -> 0.0180312818 | AA20: ='WA Electric - Sched 92'!$I$23 -> 0.0180312818 | AB20: ='WA Electric - Sched 92'!$I$23 -> 0.0180312818 | AC20: ='WA Electric - Sched 92'!$I$23 -> 0.0180312818 | AD20: ='WA Electric - Sched 92'!$I$23 -> 0.0180312818 | AE20: ='WA Electric - Sched 92'!$I$23 -> 0.0180312818 | AF20: ='WA Electric - Sched 92'!$I$23 -> 0.0180312818
A23: Gross LIRAP Revenue | D23: =D4 -> 2023-06-30 | E23: =E4 -> 2023-07-30 | F23: 2023-08-30 | G23: 2023-09-30 | H23: 2023-10-30 | I23: 2023-11-30 | J23: 2023-12-30 | K23: 2024-01-30 | L23: 2024-02-29 | M23: 2024-03-29 | N23: 2024-04-29 | O23: 2024-05-29 | P23: 2024-06-29 | Q23: 2024-07-29 | R23: 2024-08-29 | S23: 2024-09-29 | T23: =T4 -> 2024-10-29 | U23: 2024-11-29 | V23: 2024-12-29 | W23: 2025-01-29 | X23: 2025-02-28 | Y23: 2025-03-28 | Z23: 2025-04-28 | AA23: 2025-05-28 | AB23: 2025-06-28 | AC23: 2025-07-28 | AD23: 2025-08-28 | AE23: 2025-09-28 | AF23: =AF4 -> 2025-10-28
B24: Residential Schedule 001 | D24: =D5*D15 -> 288085.1382 | E24: =E5*E15 -> 353784.6479 | F24: =F5*F15 -> 385409.7611 | G24: =G5*G15 -> 295345.1207 | H24: 311972.8364 | I24: 954267.5257 | J24: 1204667.912 | K24: 1225022.456 | L24: 1041980.812 | M24: 922040.6559 | N24: 746534.6019 | O24: 670862.5055 | P24: =P5*P15 -> 658924.2246 | Q24: 783897.299 | R24: 851341.4402 | S24: =S5*S15 -> 670263.1407 | T24: =T5*T15 -> 713062.4024 | U24: 933845.6704 | V24: 1207459.787 | W24: 1226043.831 | X24: 1052982.117 | Y24: 939226.47 | Z24: 765118.9537 | AA24: 689394.3611 | AB24: 669123.9648 | AC24: 784060.9464 | AD24: 851361.172 | AE24: 675122.4084 | AF24: =AF5*AF15 -> 722041.8563
B25: General Svc Schedule 011/012 | D25: =D6*D16 -> 129804.5115 | E25: =E6*E16 -> 150386.9896 | F25: 149403.9499 | G25: 132499.7728 | H25: 136788.5575 | I25: 279846.4656 | J25: 314873.9796 | K25: 308342.6187 | L25: 282615.1466 | M25: 267919.0994 | N25: 233900.5544 | O25: 226933.5521 | P25: =P6*P16 -> 233419.2743 | Q25: 269673.4451 | R25: 268003.1151 | S25: 237401.8357 | T25: =T6*T16 -> 246866.1314 | U25: 281282.9377 | V25: 315840.1506 | W25: 313739.605 | X25: 286290.4669 | Y25: 272567.606 | Z25: 236837.7717 | AA25: 230592.1652 | AB25: 236953.8374 | AC25: 274096.1098 | AD25: 272691.5235 | AE25: 240000.0694 | AF25: =AF6*AF16 -> 250970.2486
B26: Large Gen Svc Schedule 021/022 | D26: =D7*D17 -> 205657.9293 | E26: =E7*E17 -> 226074.4695 | F26: 210185.5538 | G26: 194004.1338 | H26: 214716.7581 | I26: 458852.427 | J26: 444489.5381 | K26: 426049.5441 | L26: 413842.0508 | M26: 404180.1929 | N26: 390362.1118 | O26: 407283.1664 | P26: =P7*P17 -> 422407.67 | Q26: 461639.9556 | R26: 429222.949 | S26: 396492.3073 | T26: =T7*T17 -> 441719.9554 | U26: 450866.5279 | V26: 437612.7521 | W26: 424304.8147 | X26: 408540.3886 | Y26: 400087.9876 | Z26: 383889.1368 | AA26: 401845.9149 | AB26: 418298.1125 | AC26: 459022.1137 | AD26: 427746.411 | AE26: 391172.2254 | AF26: =AF7*AF17 -> 436572.1193
B27: Extra Large Gen Schedule 25/25I | D27: =D8*D18 -> 68248.94738 | E27: =E8*E18 -> 63133.48737 | F27: 71308.4771 | G27: 59630.48273 | H27: 62267.80704 | I27: 165543.9427 | J27: 143237.7528 | K27: 173688.371 | L27: 145926.456 | M27: 160218.7108 | N27: 166036.3397 | O27: 145965.3788 | P27: =P8*P18 -> 156559.2174 | Q27: 146964.3448 | R27: 171768.5719 | S27: 144630.2927 | T27: =T8*T18 -> 147093.4548 | U27: 164282.7055 | V27: 140925.1008 | W27: 171047.1995 | X27: 143879.7585 | Y27: 155372.65 | Z27: 165904.7364 | AA27: 143467.9062 | AB27: 154478.9464 | AC27: 145838.9507 | AD27: 168551.3803 | AE27: 144710.1187 | AF27: =AF8*AF18 -> 145134.1374
B28: Pumping Schedule 31/32 | D28: =D9*D19 -> 33514.75313 | E28: =E9*E19 -> 40805.40394 | F28: 45569.05266 | G28: 37034.26361 | H28: 20404.95865 | I28: 12162.48561 | J28: 14654.26801 | K28: 16422.01013 | L28: 17693.12858 | M28: 17144.75901 | N28: 24750.94712 | O28: 52777.44299 | P28: =P9*P19 -> 86245.40332 | Q28: 101246.1091 | R28: 114472.5344 | S28: 91482.48872 | T28: =T9*T19 -> 51608.18243 | U28: 13402.94293 | V28: 14840.0445 | W28: 16917.79072 | X28: 17590.72484 | Y28: 16972.734 | Z28: 24399.32511 | AA28: 50831.73103 | AB28: 83231.33683 | AC28: 101874.8417 | AD28: 114021.8778 | AE28: 91537.63781 | AF28: =AF9*AF19 -> 54394.51551
B29: Street and Area Lights | D29: =D10*D20 -> 7301.404714 | E29: =E10*E20 -> 7274.816931 | F29: 7530.33436 | G29: 7506.027786 | H29: 7502.446486 | I29: 23987.54972 | J29: =J10*J20 -> 24141.43615 | K29: 24165.30865 | L29: 22937.56807 | M29: 24413.0101 | N29: 23311.55616 | O29: =O10*O20 -> 23386.88947 | P29: =P10*P20 -> 23677.82292 | Q29: 23699.24211 | R29: 23681.77442 | S29: 23778.59484 | T29: =T10*T20 -> 23149.22156 | U29: 23501.28807 | V29: 23555.64352 | W29: 23885.55788 | X29: 22526.85238 | Y29: 23952.88233 | Z29: 22908.82258 | AA29: 22968.21226 | AB29: 23217.04656 | AC29: 23283.98134 | AD29: 23214.23072 | AE29: 23315.96381 | AF29: =AF10*AF20 -> 22722.3489
B30: Total | D30: =SUM(D24:D29) -> 732612.6842 | E30: =SUM(E24:E29) -> 841459.8153 | F30: 869407.129 | G30: 726019.8015 | H30: 753653.3641 | I30: 1894660.396 | J30: 2146064.886 | K30: 2173690.309 | L30: 1924995.162 | M30: =SUM(M24:M29) -> 1795916.428 | N30: 1584896.111 | O30: 1527208.935 | P30: =SUM(P24:P29) -> 1581233.613 | Q30: 1787120.396 | R30: 1858490.385 | S30: 1564048.66 | T30: =SUM(T24:T29) -> 1623499.348 | U30: 1867182.072 | V30: 2140233.479 | W30: 2175938.799 | X30: 1931810.308 | Y30: 1808180.33 | Z30: 1599058.746 | AA30: 1539100.291 | AB30: 1585303.244 | AC30: 1788176.944 | AD30: 1857586.595 | AE30: 1565858.423 | AF30: =SUM(AF24:AF29) -> 1631835.226 | AG30: =SUM(H30:S30)-'WA Electric - Sched 92'!D39 -> -869845.9839
A32: Net LIRAP Revenue | C32: ='Rev Conv Factor'!E22 -> 0.9560685519 | D32: =D4 -> 2023-06-30 | E32: =E4 -> 2023-07-30 | F32: 2023-08-30 | G32: 2023-09-30 | H32: 2023-10-30 | I32: 2023-11-30 | J32: 2023-12-30 | K32: 2024-01-30 | L32: 2024-02-29 | M32: 2024-03-29 | N32: 2024-04-29 | O32: 2024-05-29 | P32: 2024-06-29 | Q32: 2024-07-29 | R32: 2024-08-29 | S32: 2024-09-29 | T32: =T4 -> 2024-10-29 | U32: 2024-11-29 | V32: 2024-12-29 | W32: 2025-01-29 | X32: 2025-02-28 | Y32: 2025-03-28 | Z32: 2025-04-28 | AA32: 2025-05-28 | AB32: 2025-06-28 | AC32: 2025-07-28 | AD32: 2025-08-28 | AE32: 2025-09-28 | AF32: =AF4 -> 2025-10-28
B33: Residential Schedule 001 | D33: =D24*$C$32 -> 275429.1409 | E33: =E24*$C$32 -> 338242.376 | F33: =F24*$C$32 -> 368478.1522 | G33: =G24*$C$32 -> 282370.1819 | H33: 298267.4179 | I33: 912345.1714 | J33: 1151745.106 | K33: 1171205.446 | L33: 996205.0858 | M33: 881534.0746 | N33: 713738.2557 | O33: 641390.5442 | P33: =P24*$C$32 -> 629976.7293 | Q33: 749459.5555 | R33: 813940.7779 | S33: =S24*$C$32 -> 640817.5103 | T33: =T24*$C$32 -> 681736.5385 | U33: 892820.4778 | V33: 1154414.33 | W33: 1172181.95 | X33: 1006723.087 | Y33: 897964.8911 | Z33: 731506.1701 | AA33: 659108.2685 | AB33: 639728.3801 | AC33: 749616.0137 | AD33: 813959.6428 | AE33: 645463.3033 | AF33: =AF24*$C$32 -> 690321.5119
B34: General Svc Schedule 011/012 | D34: =D25*$C$32 -> 124102.0114 | E34: =E25*$C$32 -> 143780.2714 | F34: 142840.418 | G34: 126678.8659 | H34: 130779.2381 | I34: 267552.4051 | J34: 301041.1097 | K34: 294796.6809 | L34: 270199.454 | M34: 256149.0254 | N34: 223624.9643 | O34: 216964.0325 | P34: =P25*$C$32 -> 223164.8275 | Q34: 257826.3002 | R34: 256229.3502 | S34: 226972.4293 | T34: =T25*$C$32 -> 236020.9447 | U34: 268925.771 | V34: 301964.8354 | W34: 299956.5699 | X34: 273713.3121 | Y34: 260593.3163 | Z34: 226433.1454 | AA34: 220461.9174 | AB34: 226544.1121 | AC34: 262054.6707 | AD34: 260711.79 | AE34: 229456.5189 | AF34: =AF25*$C$32 -> 239944.7621
B35: Large Gen Svc Schedule 021/022 | D35: =D26*$C$32 -> 196623.0786 | E35: =E26*$C$32 -> 216142.6907 | F35: 200951.7981 | G35: 185481.2512 | H35: 205283.94 | I35: 438694.3755 | J35: 424962.469 | K35: 407332.5706 | L35: 395661.3702 | M35: 386423.9717 | N35: 373212.939 | O35: 389390.6271 | P35: =P26*$C$32 -> 403850.6894 | Q35: 441359.4439 | R35: 410366.5633 | S35: 379073.8261 | T35: =T26*$C$32 -> 422314.5581 | U35: 431059.3084 | V35: 418387.7902 | W35: 405664.4898 | X35: 390592.6177 | Y35: 382511.5429 | Z35: 367024.3311 | AA35: 384192.2419 | AB35: 399921.6707 | AC35: 438856.6076 | AD35: 408954.8918 | AE35: 373987.463 | AF35: =AF26*$C$32 -> 417392.8739
B36: Extra Large Gen Schedule 25/25I | D36: =D27*$C$32 -> 65250.67229 | E36: =E27*$C$32 -> 60359.94185 | F36: 68175.79244 | G36: 57010.82927 | H36: 59532.29211 | I36: 158271.3576 | J36: 136945.1109 | K36: 166057.9894 | L36: 139515.6955 | M36: 153180.0708 | N36: 158742.1228 | O36: 139552.9083 | P36: =P27*$C$32 -> 149681.3442 | Q36: 140507.9884 | R36: 164222.5298 | S36: 138276.4745 | T36: =T27*$C$32 -> 140631.4263 | U36: 157065.5283 | V36: 134734.0571 | W36: 163532.8483 | X36: 137558.9124 | Y36: 148546.9045 | Z36: 158616.3011 | AA36: 137165.1533 | AB36: 147692.4626 | AC36: 139432.0344 | AD36: 161146.6741 | AE36: 138352.7936 | AF36: =AF27*$C$32 -> 138758.1845
B37: Pumping Schedule 31/32 | D37: =D28*$C$32 -> 32042.40149 | E37: =E28*$C$32 -> 39012.76346 | F37: 43567.13818 | G37: 35407.29478 | H37: 19508.53927 | I37: 11628.17 | J37: 14010.48479 | K37: 15700.56744 | L37: 16915.84382 | M37: 16391.56492 | N37: 23663.60217 | O37: 50458.85349 | P37: =P28*$C$32 -> 82456.51786 | Q37: 96798.22095 | R37: 109443.5902 | S37: 87463.53051 | T37: =T28*$C$32 -> 49340.96024 | U37: 12814.13224 | V37: 14188.09985 | W37: 16174.56768 | X37: 16817.93883 | Y37: 16227.09721 | Z37: 23327.42742 | AA37: 48598.61947 | AB37: 79574.86367 | AC37: 97399.33242 | AD37: 109012.7316 | AE37: 87516.25682 | AF37: =AF28*$C$32 -> 52004.88568
B38: Street and Area Lights | D38: =D29*$C$32 -> 6980.643432 | E38: =E29*$C$32 -> 6955.223688 | F38: =F29*$C$32 -> 7199.515867 | G38: 7176.277115 | H38: 7172.853147 | I38: 22933.74192 | J38: 23080.8679 | K38: 23103.69165 | L38: 21929.88749 | M38: 23340.51122 | N38: 22287.44574 | O38: 22359.46955 | P38: =P29*$C$32 -> 22637.62187 | Q38: 22658.10009 | R38: 22641.39978 | S38: 22733.96674 | T38: =T29*$C$32 -> 22132.24274 | U38: 22468.84245 | V38: 22520.80999 | W38: 22836.23073 | X38: 21537.21514 | Y38: 22900.59752 | Z38: 21902.40483 | AA38: 21959.18543 | AB38: 22197.08808 | AC38: 22261.08232 | AD38: 22194.39595 | AE38: 22291.65976 | AF38: =AF29*$C$32 -> 21724.12321
B39: Total | D39: =SUM(D33:D38) -> 700427.9481 | E39: =SUM(E33:E38) -> 804493.2671 | F39: 831212.8148 | G39: 694124.7002 | H39: 720544.2805 | I39: 1811425.221 | J39: 2051785.148 | K39: 2078196.946 | L39: 1840427.337 | M39: 1717019.219 | N39: 1515269.33 | O39: 1460116.435 | P39: =SUM(P33:P38) -> 1511767.73 | Q39: 1708609.609 | R39: 1776844.211 | S39: 1495337.737 | T39: =SUM(T33:T38) -> 1552176.671 | U39: 1785154.06 | V39: 2046209.923 | W39: 2080346.657 | X39: 1846943.084 | Y39: 1728744.349 | Z39: 1528809.78 | AA39: 1471485.386 | AB39: 1515658.577 | AC39: 1709619.741 | AD39: 1775980.126 | AE39: 1497067.995 | AF39: =SUM(AF33:AF38) -> 1560146.341 | AG39: =SUM(H39:S39)-'WA Electric - Sched 92'!D42 -> -831632.3902

Sheet Billing Determinants
A4: Forecasted Loads
C7: 2023-06-30 | D7: =EDATE(C7, 1) -> 2023-07-30 | E7: 2023-08-30 | F7: 2023-09-30 | G7: 2023-10-30 | H7: 2023-11-30 | I7: 2023-12-30 | J7: 2024-01-30 | K7: 2024-02-29 | L7: 2024-03-29 | M7: 2024-04-29 | N7: 2024-05-29 | O7: 2024-06-29 | P7: 2024-07-29 | Q7: 2024-08-29 | R7: 2024-09-29 | S7: 2024-10-29 | T7: 2024-11-29 | U7: 2024-12-29 | V7: 2025-01-29 | W7: 2025-02-28 | X7: 2025-03-28 | Y7: 2025-04-28 | Z7: 2025-05-28 | AA7: 2025-06-28 | AB7: 2025-07-28 | AC7: 2025-08-28 | AD7: 2025-09-28 | AE7: 2025-10-28
A8: WA001/002 | C8: =C32+C33 -> 160941418 | D8: =D32+D33 -> 197645054.7 | E8: =E32+E33 -> 215312715.7 | F8: 164997274.2 | G8: 174286500.8 | H8: 234525843.5 | I8: 296065569.1 | J8: 301068009.9 | K8: 256082725.4 | L8: 226605597.2 | M8: 183472299.4 | N8: 164874724.1 | O8: 161940708.9 | P8: 192654753.8 | Q8: 209230183.3 | R8: 164727421 | S8: 175245994.3 | T8: 229506860.1 | U8: 296751715.3 | V8: 301319028.4 | W8: 258786464.4 | X8: 230829273.9 | Y8: 188039688.2 | Z8: 169429211.1 | AA8: 164447451.1 | AB8: 192694972.7 | AC8: 209235032.7 | AD8: 165921660.3 | AE8: =AE32+AE33 -> 177452832.5
A9: WA011/013 | C9: =C34+C36 -> 45693003.5 | D9: =D34+D36 -> 53180705.39 | E9: =E34+E36 -> 52814785.69 | F9: 46774984.15 | G9: 47730229.4 | H9: 53579171.56 | I9: 59092054.67 | J9: 57647139.53 | K9: 53316669.01 | L9: 50864394.89 | M9: 45146426.38 | N9: 44293224.34 | O9: 45851883.41 | P9: 53247669.51 | Q9: 52891156.38 | R9: 46783841.65 | S9: 48136137.53 | T9: 53735891.01 | U9: 59311112.06 | V9: 58652386.12 | W9: 53970684.05 | X9: 51626819.15 | Y9: 45613902.62 | Z9: 44965980.44 | AA9: 46490836.74 | AB9: 54013174.65 | AC9: 53748808.77 | AD9: 47267203.89 | AE9: =AE34+AE36 -> 48890691.13
A10: WA012 | C10: =C35 -> 4231808.626 | D10: =D35 -> 4660444.464 | E10: =E35 -> 4648271.962 | F10: 4186466.932 | G10: 4880754.242 | H10: 6546026.896 | I10: 8558828.362 | J10: 8600476.301 | K10: 7403382.403 | L10: 6698201.057 | M10: 5107262.629 | N10: 4463599.613 | O10: 4298402.248 | P10: 4691848.766 | Q10: 4689490.392 | R10: 4222099.968 | S10: 4903214.29 | T10: 6697934.442 | U10: 8547353.453 | V10: 8754775.804 | W10: 7539012.362 | X10: 6934511.496 | Y10: 5270849.477 | Z10: 4576898.955 | AA10: 4418852.137 | AB10: 4876556.057 | AC10: 4839145.648 | AD10: 4296969.975 | AE10: =AE35 -> 5030432.98
A11: WA021/023 | C11: =C37+C39 -> 108536952.1 | D11: =D37+D39 -> 119121953.2 | E11: =E37+E39 -> 110598293.5 | F11: 102184430.8 | G11: 113118687.2 | H11: 115389706.5 | I11: 110843028.5 | J11: 106162663.8 | K11: 103603986.8 | L11: 101316766.7 | M11: 98259579.26 | N11: 102777325.9 | O11: 106693657 | P11: 116386092.1 | Q11: 108059344.8 | R11: 99925049.13 | S11: 111323429.8 | T11: 113319526.3 | U11: 109175762.1 | V11: 105709748.2 | W11: 102233047.2 | X11: 100263397.5 | Y11: 96579520.16 | Z11: 101362928.7 | AA11: 105600144.1 | AB11: 115677564.2 | AC11: 107654887.7 | AD11: 98561253.77 | AE11: =AE37+AE39 -> 109974995.1
A12: WA022 | C12: =C38 -> 2031827.107 | D12: =D38 -> 2423460.489 | E12: =E38 -> 2404692.454 | F12: 2118866.967 | G12: 2320430.068 | H12: 2675509.61 | I12: 3526538.494 | J12: 3462192.835 | K12: 2879815.557 | L12: 2680987.301 | M12: 2182707.614 | N12: 2018840.012 | O12: 1994125.668 | P12: 2396370.305 | Q12: 2382046.115 | R12: 2094570.249 | S12: 2333508.517 | T12: 2690874.658 | U12: 3424370.63 | V12: 3466180.114 | W12: 2886608.825 | X12: 2681409.87 | Y12: 2197235.167 | Z12: 2034202.972 | AA12: 2030227.1 | AB12: 2431313.247 | AC12: 2406581.949 | AD12: 2089479.707 | AE12: =AE38 -> 2357377.082
A13: WA025/025I | C13: =C40+C44-C45 -> 57838091 | D13: =D40+D44-D45 -> 53502955.4 | E13: 60430912.8 | F13: 50534307.4 | G13: 52769328 | H13: 57591762 | I13: 49831570 | J13: 60425160.6 | K13: 50766954 | L13: 55739145.2 | M13: 57763064 | N13: 50780495 | O13: 54466029 | P13: 51128029.4 | Q13: 59757273.8 | R13: 50316026.4 | S13: 51172946 | T13: 57152985 | U13: 49027012 | V13: 59506312.6 | W13: 50054920 | X13: 54053229.2 | Y13: 57717280 | Z13: 49911639 | AA13: 53742315 | AB13: 50736511.4 | AC13: 58638031.8 | AD13: 50343797.4 | AE13: 50491311
A14: WA031 | C14: =C41 -> 19499046.17 | D14: 23017190.98 | E14: =E41 -> 26370003.28 | F14: 21670353.87 | G14: 12116387.87 | H14: 2770724.507 | I14: 3336170.749 | J14: 3704484.8 | K14: 4008720.893 | L14: 3881445.499 | M14: 5671814.871 | N14: 12259444.87 | O14: 20164138.53 | P14: 23169494.9 | Q14: 26240910.44 | R14: 21305729.59 | S14: 12135802.98 | T14: 2978058.191 | U14: 3296331.412 | V14: 3759359.895 | W14: 4003457.099 | X14: 3869589.414 | Y14: 5616967.697 | Z14: 11753333.97 | AA14: 19349930.15 | AB14: 23109671.17 | AC14: 26198308.16 | AD14: 21299148.42 | AE14: =AE41 -> 12815837.14
A15: WA032 | C15: 1189073.042 | D15: 2171329.971 | E15: =E42 -> 1759041.572 | F15: 1190302.677 | G15: 479265.6236 | H15: 216805.7273 | I15: 263428.0623 | J15: 329333.0672 | K15: 337327.9548 | L15: 329904.678 | M15: 407880.1229 | N15: 704534.0172 | O15: 1020737.512 | P15: 1700077.152 | Q15: 1877532.497 | R15: 1165557.102 | S15: 540964.7741 | T15: 314171.5821 | U15: 348900.5785 | V15: 396238.9614 | W15: 317437.824 | X15: 299505.4247 | Y15: 376356.6783 | Z15: 732710.2617 | AA15: 1094586.149 | AB15: 1914339.515 | AC15: 1809437.829 | AD15: 1185684.813 | AE15: =AE42 -> 545351.1055
A16: WA04X | C16: 1315164.523 | D16: 1319522.924 | E16: =E43 -> 1343017.049 | F16: 1345900.796 | G16: 1314322.674 | H16: 1330329.701 | I16: 1338864.115 | J16: 1340188.065 | K16: 1272098.586 | L16: 1353925.382 | M16: 1292839.656 | N16: 1297017.579 | O16: 1313152.508 | P16: 1314340.399 | Q16: 1313371.656 | R16: 1318741.236 | S16: 1283836.714 | T16: 1303362.031 | U16: 1306376.54 | V16: 1324673.318 | W16: 1249320.633 | X16: 1328407.076 | Y16: 1270504.385 | Z16: 1273798.087 | AA16: 1287598.232 | AB16: 1291310.38 | AC16: 1287442.068 | AD16: 1293084.101 | AE16: =AE43 -> 1260162.708
C17: =SUM(C8:C16) -> 401276384 | D17: =SUM(D8:D16) -> 457042617.6 | E17: =SUM(E8:E16) -> 475681734 | F17: 395002887.7 | G17: 409015905.8 | H17: 474625880 | I17: 532856052.1 | J17: 542739648.8 | K17: 479671680.7 | L17: 449470367.9 | M17: 399303874 | N17: 383469205.4 | O17: 397742834.8 | P17: 446688676.3 | Q17: 466441309.4 | R17: 391859036.3 | S17: 407075835 | T17: 467699663.4 | U17: 531188934 | V17: 542888703.4 | W17: 481040952.4 | X17: 451886143.1 | Y17: 402682304.4 | Z17: 386040703.4 | AA17: 398461940.7 | AB17: 446745413.3 | AC17: 465817676.7 | AD17: 392258282.4 | AE17: =SUM(AE8:AE16) -> 408818990.8
A19: WA001 | C19: =C8 -> 160941418 | D19: =D8 -> 197645054.7 | E19: 215312715.7 | F19: 164997274.2 | G19: 174286500.8 | H19: 234525843.5 | I19: 296065569.1 | J19: 301068009.9 | K19: 256082725.4 | L19: 226605597.2 | M19: 183472299.4 | N19: 164874724.1 | O19: 161940708.9 | P19: 192654753.8 | Q19: 209230183.3 | R19: 164727421 | S19: =S8 -> 175245994.3 | T19: 229506860.1 | U19: 296751715.3 | V19: 301319028.4 | W19: 258786464.4 | X19: 230829273.9 | Y19: 188039688.2 | Z19: 169429211.1 | AA19: 164447451.1 | AB19: 192694972.7 | AC19: 209235032.7 | AD19: 165921660.3 | AE19: =AE8 -> 177452832.5 | AF19: =SUM(H19:S19) -> 2566493830 | AG19: =SUM(T19:AE19) -> 2584414191
A20: WA011/12 | C20: =C9+C10 -> 49924812.13 | D20: =D9+D10 -> 57841149.86 | E20: 57463057.65 | F20: 50961451.09 | G20: 52610983.64 | H20: 60125198.46 | I20: 67650883.03 | J20: 66247615.83 | K20: 60720051.41 | L20: 57562595.94 | M20: 50253689.01 | N20: 48756823.95 | O20: 50150285.66 | P20: 57939518.28 | Q20: 57580646.77 | R20: 51005941.62 | S20: =S9+S10 -> 53039351.82 | T20: 60433825.46 | U20: 67858465.52 | V20: 67407161.92 | W20: 61509696.41 | X20: 58561330.65 | Y20: 50884752.1 | Z20: 49542879.4 | AA20: 50909688.88 | AB20: 58889730.7 | AC20: 58587954.42 | AD20: 51564173.86 | AE20: =AE9+AE10 -> 53921124.11 | AF20: =SUM(H20:S20) -> 681032601.8 | AG20: 690070783.4
A21: WA021/22 | C21: =C11+C12 -> 110568779.2 | D21: =D11+D12 -> 121545413.7 | E21: 113002985.9 | F21: 104303297.7 | G21: 115439117.3 | H21: 118065216.1 | I21: 114369567 | J21: 109624856.6 | K21: 106483802.4 | L21: 103997754 | M21: 100442286.9 | N21: 104796165.9 | O21: 108687782.7 | P21: 118782462.4 | Q21: 110441390.9 | R21: 102019619.4 | S21: =S11+S12 -> 113656938.3 | T21: 116010401 | U21: 112600132.7 | V21: 109175928.3 | W21: 105119656 | X21: 102944807.4 | Y21: 98776755.33 | Z21: 103397131.6 | AA21: 107630371.2 | AB21: 118108877.5 | AC21: 110061469.6 | AD21: 100650733.5 | AE21: =AE11+AE12 -> 112332372.2 | AF21: 1311367843 | AG21: 1296808636
A22: WA025 | C22: =C13 -> 57838091 | D22: =D13 -> 53502955.4 | E22: 60430912.8 | F22: 50534307.4 | G22: 52769328 | H22: 57591762 | I22: 49831570 | J22: 60425160.6 | K22: 50766954 | L22: 55739145.2 | M22: 57763064 | N22: 50780495 | O22: 54466029 | P22: 51128029.4 | Q22: 59757273.8 | R22: 50316026.4 | S22: =S13 -> 51172946 | T22: 57152985 | U22: 49027012 | V22: 59506312.6 | W22: 50054920 | X22: 54053229.2 | Y22: 57717280 | Z22: 49911639 | AA22: 53742315 | AB22: 50736511.4 | AC22: 58638031.8 | AD22: 50343797.4 | AE22: =AE13 -> 50491311 | AF22: 649738455.4 | AG22: 641375344.4
A23: WA031/32 | C23: =C14+C15 -> 20688119.21 | D23: =D14+D15 -> 25188520.95 | E23: 28129044.85 | F23: 22860656.55 | G23: 12595653.49 | H23: 2987530.235 | I23: 3599598.811 | J23: 4033817.868 | K23: 4346048.848 | L23: 4211350.177 | M23: 6079694.994 | N23: 12963978.89 | O23: 21184876.05 | P23: 24869572.05 | Q23: 28118442.94 | R23: 22471286.69 | S23: =S14+S15 -> 12676767.75 | T23: 3292229.773 | U23: 3645231.991 | V23: 4155598.856 | W23: 4320894.923 | X23: 4169094.839 | Y23: 5993324.375 | Z23: 12486044.24 | AA23: 20444516.3 | AB23: 25024010.69 | AC23: 28007745.99 | AD23: 22484833.23 | AE23: =AE14+AE15 -> 13361188.24 | AF23: 147542965.3 | AG23: 147384713.4
A24: WA04X | C24: =C16 -> 1315164.523 | D24: =D16 -> 1319522.924 | E24: 1343017.049 | F24: 1345900.796 | G24: 1314322.674 | H24: 1330329.701 | I24: 1338864.115 | J24: 1340188.065 | K24: 1272098.586 | L24: 1353925.382 | M24: 1292839.656 | N24: 1297017.579 | O24: 1313152.508 | P24: 1314340.399 | Q24: 1313371.656 | R24: 1318741.236 | S24: =S16 -> 1283836.714 | T24: 1303362.031 | U24: 1306376.54 | V24: 1324673.318 | W24: 1249320.633 | X24: 1328407.076 | Y24: 1270504.385 | Z24: 1273798.087 | AA24: 1287598.232 | AB24: 1291310.38 | AC24: 1287442.068 | AD24: 1293084.101 | AE24: =AE16 -> 1260162.708 | AF24: 15768705.6 | AG24: 15476039.56
A25: Total | C25: =SUM(C19:C24) -> 401276384 | D25: =SUM(D19:D24) -> 457042617.6 | E25: =SUM(E19:E24) -> 475681734 | F25: 395002887.7 | G25: 409015905.8 | H25: 474625880 | I25: 532856052.1 | J25: 542739648.8 | K25: 479671680.7 | L25: 449470367.9 | M25: 399303874 | N25: 383469205.4 | O25: 397742834.8 | P25: 446688676.3 | Q25: 466441309.4 | R25: 391859036.3 | S25: 407075835 | T25: 467699663.4 | U25: 531188934 | V25: 542888703.4 | W25: 481040952.4 | X25: 451886143.1 | Y25: 402682304.4 | Z25: 386040703.4 | AA25: 398461940.7 | AB25: 446745413.3 | AC25: 465817676.7 | AD25: 392258282.4 | AE25: =SUM(AE19:AE24) -> 408818990.8 | AF25: 5371944401 | AG25: 5375529708
C31: =SUM(C32:C44)-C17 -> 32185947 | D31: =SUM(D32:D44)-D17 -> 34794329.6 | E31: =SUM(E32:E44)-E17 -> 35012148.2 | F31: 33205161.6 | G31: 34639056 | H31: 27404254 | I31: 34786226 | J31: 30592247.4 | K31: 29055804 | L31: 30048328.8 | M31: 28282368 | N31: 33251464 | O31: 32185947 | P31: 34794329.6 | Q31: 35012148.2 | R31: 33205161.6 | S31: 34639056 | T31: 27404254 | U31: 34786226 | V31: 30592247.4 | W31: 29055804 | X31: 30048328.8 | Y31: 28282368 | Z31: 33251464 | AA31: 32185947 | AB31: 34794329.6 | AC31: 35012148.2 | AD31: 33205161.6
A32: WA_1 | C32: 160313937.2 | D32: 196924338.5 | E32: 214547185.3 | F32: 164371149 | G32: 173496039.7 | H32: 233284192.3 | I32: 294458861.9 | J32: 299403990 | K32: 254670639.8 | L32: 225342904.5 | M32: 182494367.5 | N32: 164073459.2 | O32: 161241366.7 | P32: 191876585.8 | Q32: 208405517.9 | R32: 164035309.9 | S32: 174369618.3 | T32: 228166844.1 | U32: 294974973.9 | V32: 299482684.9 | W32: 257213596.3 | X32: 229413093.6 | Y32: 186933524.1 | Z32: 168518372.6 | AA32: 163660617.2 | AB32: 191836029.8 | AC32: 208329085.2 | AD32: 165159217.7 | AE32: 176489365.2
A33: WA_2 | C33: 627480.8311 | D33: 720716.2128 | E33: 765530.3715 | F33: 626125.1484 | G33: 790461.0529 | H33: 1241651.138 | I33: 1606707.27 | J33: 1664019.854 | K33: 1412085.694 | L33: 1262692.68 | M33: 977931.9418 | N33: 801264.868 | O33: 699342.1648 | P33: 778168.0088 | Q33: 824665.4557 | R33: 692111.0693 | S33: 876376.0305 | T33: 1340016.049 | U33: 1776741.384 | V33: 1836343.573 | W33: 1572868.131 | X33: 1416180.316 | Y33: 1106164.102 | Z33: 910838.4499 | AA33: 786833.8917 | AB33: 858942.8995 | AC33: 905947.5072 | AD33: 762442.6448 | AE33: 963467.3154
A34: WA_11 | C34: 45678027.36 | D34: 53165683.83 | E34: 52799614.54 | F34: 46759812.58 | G34: 47714979.71 | H34: 53564371.22 | I34: 59077181.91 | J34: 57632192.32 | K34: 53301667.28 | L34: 50849365.64 | M34: 45131394.92 | N34: 44278196.96 | O34: 45836867.3 | P34: 53232672.08 | Q34: 52876187.61 | R34: 46768853.31 | S34: 48121136.72 | T34: 53720884.29 | U34: 59296104.63 | V34: 58637381.19 | W34: 53955682.07 | X34: 51611819.97 | Y34: 45598905.34 | Z34: 44950983.17 | AA34: 46475836.3 | AB34: 53998172.86 | AC34: 53733806.88 | AD34: 47252202.53 | AE34: 48875690.45
A35: WA_12 | C35: 4231808.626 | D35: 4660444.464 | E35: 4648271.962 | F35: 4186466.932 | G35: 4880754.242 | H35: 6546026.896 | I35: 8558828.362 | J35: 8600476.301 | K35: 7403382.403 | L35: 6698201.057 | M35: 5107262.629 | N35: 4463599.613 | O35: 4298402.248 | P35: 4691848.766 | Q35: 4689490.392 | R35: 4222099.968 | S35: 4903214.29 | T35: 6697934.442 | U35: 8547353.453 | V35: 8754775.804 | W35: 7539012.362 | X35: 6934511.496 | Y35: 5270849.477 | Z35: 4576898.955 | AA35: 4418852.137 | AB35: 4876556.057 | AC35: 4839145.648 | AD35: 4296969.975 | AE35: 5030432.98
A36: WA_13 | C36: 14976.13591 | D36: 15021.56519 | E36: 15171.15252 | F36: 15171.57672 | G36: 15249.69348 | H36: 14800.34078 | I36: 14872.7628 | J36: 14947.20789 | K36: 15001.73172 | L36: 15029.24517 | M36: 15031.46577 | N36: 15027.38003 | O36: 15016.11374 | P36: 14997.42928 | Q36: 14968.76108 | R36: 14988.34386 | S36: 15000.81089 | T36: 15006.72527 | U36: 15007.43413 | V36: 15004.92167 | W36: 15001.98022 | X36: 14999.18242 | Y36: 14997.28228 | Z36: 14997.2704 | AA36: 15000.44141 | AB36: 15001.78189 | AC36: 15001.89114 | AD36: 15001.35434 | AE36: 15000.67814
A37: WA_21 | C37: 108505022.5 | D37: 119090200.1 | E37: 110566285.7 | F37: 102152372.1 | G37: 113086841.5 | H37: 115356590.8 | I37: 110810757 | J37: 106130429.6 | K37: 103571806.7 | L37: 101284488.5 | M37: 98227334.85 | N37: 102745136.8 | O37: 106661433.2 | P37: 116353827.7 | Q37: 108027048.4 | R37: 99892723.61 | S37: 111291181.9 | T37: 113287276.7 | U37: 109143510.6 | V37: 105677492.2 | W37: 102200792.6 | X37: 100231141.3 | Y37: 96547257.45 | Z37: 101330662.4 | AA37: 105567877.5 | AB37: 115645300.4 | AC37: 107622630.2 | AD37: 98528995.32 | AE37: 109942735.8
A38: WA_22 | C38: 2031827.107 | D38: 2423460.489 | E38: 2404692.454 | F38: 2118866.967 | G38: 2320430.068 | H38: 2675509.61 | I38: 3526538.494 | J38: 3462192.835 | K38: 2879815.557 | L38: 2680987.301 | M38: 2182707.614 | N38: 2018840.012 | O38: 1994125.668 | P38: 2396370.305 | Q38: 2382046.115 | R38: 2094570.249 | S38: 2333508.517 | T38: 2690874.658 | U38: 3424370.63 | V38: 3466180.114 | W38: 2886608.825 | X38: 2681409.87 | Y38: 2197235.167 | Z38: 2034202.972 | AA38: 2030227.1 | AB38: 2431313.247 | AC38: 2406581.949 | AD38: 2089479.707 | AE38: 2357377.082
A39: WA_23 | C39: 31929.59854 | D39: 31753.09523 | E39: 32007.77235 | F39: 32058.63887 | G39: 31845.74431 | H39: 33115.78522 | I39: 32271.52467 | J39: 32234.12456 | K39: 32180.12251 | L39: 32278.21729 | M39: 32244.41141 | N39: 32189.04203 | O39: 32223.79658 | P39: 32264.31236 | Q39: 32296.33783 | R39: 32325.51951 | S39: 32247.95892 | T39: 32249.6262 | U39: 32251.43885 | V39: 32256.00586 | W39: 32254.57349 | X39: 32256.21658 | Y39: 32262.71183 | Z39: 32266.25981 | AA39: 32266.66693 | AB39: 32263.76821 | AC39: 32257.52153 | AD39: 32258.44414 | AE39: 32259.36981
A40: WA_25 | C40: 54326500 | D40: 51917113 | E40: 58885543 | F40: 49947496 | G40: 50764195 | H40: 49541955 | I40: 49979591 | J40: 55440542 | K40: 48854215 | L40: 52560911 | M40: 49147173 | N40: 49713670 | O40: 52029033 | P40: 51512338 | Q40: 58011555 | R40: 50365851 | S40: 50452671 | T40: 49586033 | U40: 49714103 | V40: 54926927 | W40: 49057508 | X40: 51207377 | Y40: 49361216 | Z40: 49414639 | AA40: 51618075 | AB40: 51429669 | AC40: 57048223 | AD40: 50693189 | AE40: 49948708
A41: WA_31 | C41: 19499046.17 | D41: 23017190.98 | E41: 26370003.28 | F41: 21670353.87 | G41: 12116387.87 | H41: 2770724.507 | I41: 3336170.749 | J41: 3704484.8 | K41: 4008720.893 | L41: 3881445.499 | M41: 5671814.871 | N41: 12259444.87 | O41: 20164138.53 | P41: 23169494.9 | Q41: 26240910.44 | R41: 21305729.59 | S41: 12135802.98 | T41: 2978058.191 | U41: 3296331.412 | V41: 3759359.895 | W41: 4003457.099 | X41: 3869589.414 | Y41: 5616967.697 | Z41: 11753333.97 | AA41: 19349930.15 | AB41: 23109671.17 | AC41: 26198308.16 | AD41: 21299148.42 | AE41: 12815837.14
A42: WA_32 | C42: 1189073.042 | D42: 2171329.971 | E42: 1759041.572 | F42: 1190302.677 | G42: 479265.6236 | H42: 216805.7273 | I42: 263428.0623 | J42: 329333.0672 | K42: 337327.9548 | L42: 329904.678 | M42: 407880.1229 | N42: 704534.0172 | O42: 1020737.512 | P42: 1700077.152 | Q42: 1877532.497 | R42: 1165557.102 | S42: 540964.7741 | T42: 314171.5821 | U42: 348900.5785 | V42: 396238.9614 | W42: 317437.824 | X42: 299505.4247 | Y42: 376356.6783 | Z42: 732710.2617 | AA42: 1094586.149 | AB42: 1914339.515 | AC42: 1809437.829 | AD42: 1185684.813 | AE42: 545351.1055
A43: WA_4X | C43: 1315164.523 | D43: 1319522.924 | E43: 1343017.049 | F43: 1345900.796 | G43: 1314322.674 | H43: 1330329.701 | I43: 1338864.115 | J43: 1340188.065 | K43: 1272098.586 | L43: 1353925.382 | M43: 1292839.656 | N43: 1297017.579 | O43: 1313152.508 | P43: 1314340.399 | Q43: 1313371.656 | R43: 1318741.236 | S43: 1283836.714 | T43: 1303362.031 | U43: 1306376.54 | V43: 1324673.318 | W43: 1249320.633 | X43: 1328407.076 | Y43: 1270504.385 | Z43: 1273798.087 | AA43: 1287598.232 | AB43: 1291310.38 | AC43: 1287442.068 | AD43: 1293084.101 | AE43: 1260162.708
A44: WA_25I | C44: 35697538 | D44: 36380172 | E44: 36557518 | F44: 33791973 | G44: 36644189 | H44: 35454061 | I44: 34638205 | J44: 35576866 | K44: 30968543 | L44: 33226563 | M44: 36898259 | N44: 34318289 | O44: 34622943 | P44: 34410021 | Q44: 36757867 | R44: 33155337 | S44: 35359331 | T44: 34971206 | U44: 34099135 | V44: 35171633 | W44: 30053216 | X44: 32894181 | Y44: 36638432 | Z44: 33748464 | AA44: 34310187 | AB44: 34101172 | AC44: 36601957 | AD44: 32855770 | AE44: 35181659
A45: WA 25/25I Block 3 | C45: 32185947 | D45: 34794329.6 | E45: 35012148.2 | F45: 33205161.6 | G45: 34639056 | H45: 27404254 | I45: 34786226 | J45: 30592247.4 | K45: 29055804 | L45: 30048328.8 | M45: 28282368 | N45: 33251464 | O45: 32185947 | P45: 34794329.6 | Q45: 35012148.2 | R45: 33205161.6 | S45: 34639056 | T45: 27404254 | U45: 34786226 | V45: 30592247.4 | W45: 29055804 | X45: 30048328.8 | Y45: 28282368 | Z45: 33251464 | AA45: 32185947 | AB45: 34794329.6 | AC45: 35012148.2 | AD45: 33205161.6 | AE45: 34639056

Sheet Rev Conv Factor
A1: AVISTA UTILITIES
A2: REVENUE CONVERSION FACTOR
A3: WASHINGTON ELECTRIC
A4: TWELVE MONTHS ENDED SEPTEMBER 30, 2021
A6: Line
A7: No. | C7: Description | E7: Factor
A9: 1 | C9: Revenues | E9: 1
C11: Expense:
A12: 2 | C12: Uncollectibles | E12: 0.003326288579
A14: 3 | C14: Commission Fees | E14: 0.002
A16: 4 | C16: Washington Excise Tax | E16: 0.03860515954
A18: 5 | C18: Franchise Fees | E18: 0
A20: 6 | C20: Total Expense | E20: =E12+E14+E16+E18 -> 0.04393144812
A22: 7 | C22: Net Operating Income Before FIT | E22: =E9-E20 -> 0.9560685519
A24: 8 | C24: Federal Income Tax @ 21% | E24: 0.2007743959
A26: 9 | C26: REVENUE CONVERSION FACTOR | E26: =E22-E24 -> 0.755294156
A29: Source: UE-220053

Sheet Base Revenue
A1: AVISTA UTILITIES
A2: WASHINGTON ELECTRIC
A3: PROPOSED INCREASE BY SERVICE SCHEDULE
A4: 12 MONTHS ENDED SEPTEMBER 30, 2021
A5: (000s of Dollars)
A6: Source: UE-20053 Compliance Filing, Attachment 1
D8: Base Tariff | F8: Base Tariff | G8: Base | H8: Base Tariff | I8: Total Billed | K8: Adjusted Billed | L8: Base | M8: Sch 78 | O8: Percent | Q8: Percent | U8: Percent | V8: Total Billed
D9: Revenue | E9: Proposed | F9: Revenue | G9: Tariff | H9: Percent | I9: Revenue | J9: Misc | K9: Revenue | L9: Rate | M9: Tax | N9: Total | O9: Increase | P9: Proposed | Q9: Increase | U9: Increase | V9: Revenue
B10: Type of | C10: Schedule | D10: Under Present | E10: General | F10: Under Proposed | G10: Percent | H10: Change | I10: at Present | J10: Rate Adjustment | K10: at Present | L10: General | M10: Rate | N10: Net | O10: on Billed | P10: General | Q10: on Billed | U10: on Base | V10: at Proposed
A11: No. | B11: Service | C11: Number | D11: Rates(1) | E11: Increase | F11: Rates(1) | G11: Increase | H11: from Sp Ct | I11: Rates (2) | J11: Change | K11: Rates (2) | L11: Increase | M11: Credit | N11: Impact | O11: Revenue | P11: Increase | Q11: Revenue | U11: Revenue | V11: Rates (2)
B12: (a) | C12: (b) | D12: (c) | E12: (d) | F12: (e) | G12: (f) | H12: (i) | I12: (g) | J12: (h) | K12: (h) | L12: (h) | M12: (i) | N12: (j) | O12: (k) | P12: (j) | Q12: (k) | S12: col (m) source
A14: 1 | B14: Residential | C14: 1/2 | D14: 253459.0899 | E14: 26025.31605 | F14: 279484.4059 | G14: 0.1026805393 | H14: 0.09311902738 | I14: 240021.7457 | J14: 0 | K14: 240021.7457 | L14: 26025.31605 | M14: -12722 | N14: 13303.31605 | O14: 0.05542546161 | P14: 26025.31605 | Q14: 0.1084289925 | S14: from Pres & Prop Rev tab | U14: 0.1026805393 | V14: 253325.0617
A16: 2 | B16: General Service | C16: 11/12 | D16: 81570.42638 | E16: 3263.813327 | F16: 84833.83971 | G16: 0.04001221364 | H16: 0.03847301193 | I16: 87406.54088 | J16: 0 | K16: 87406.54088 | L16: 3263.813327 | M16: 0 | N16: 3263.813327 | O16: 0.0373406074 | P16: 3263.813327 | Q16: 0.0373406074 | S16: from below | U16: 0.04001221364 | V16: 90670.35421
A18: 3 | B18: Large General Service | C18: 21/22 | D18: 131152.6852 | E18: 5247.046103 | F18: 136399.7313 | G18: 0.04000715728 | H18: 0.03846815572 | I18: 142808.5055 | J18: 0 | K18: 142808.5055 | L18: 5247.046103 | M18: 0 | N18: 5247.046103 | O18: 0.03674183191 | P18: 5247.046103 | Q18: 0.03674183191 | S18: from below | U18: 0.04000715728 | V18: 148055.5516
A20: 4 | B20: Extra Large General Service | C20: 25 | D20: 41217.65624 | E20: 823.0493544 | F20: 42040.7056 | G20: 0.01996836864 | H20: 0.01957743912 | I20: 41422.0512 | J20: 0 | K20: 41422.0512 | L20: 823.0493544 | M20: 0 | N20: 823.0493544 | O20: 0.01986983576 | P20: 823.0493544 | Q20: 0.01986983576 | S20: from Pres & Prop Rev tab | U20: 0.01996836864 | V20: 42245.10056
A22: 5 | B22: Extra Large General Service - Special Contract | C22: 25I | D22: 21772.91244 | E22: 435.199067 | F22: 22208.11151 | G22: 0.01998809613 | H22: 0.01959640138 | I22: 22445.29772 | J22: 0 | K22: 22445.29772 | L22: 435.199067 | M22: 0 | N22: 435.199067 | O22: 0.01938932031 | P22: 435.199067 | Q22: 0.01938932031 | S22: from Pres & Prop Rev tab | U22: 0.01998809613 | V22: 22880.49679
A24: 6 | B24: Pumping Service | C24: 30/31/32 | D24: 14578.56552 | E24: 1496.60727 | F24: 16075.57279 | G24: 0.1026580611 | H24: 0.09309822359 | I24: 15745.31949 | J24: 0 | K24: 15745.31949 | L24: 1496.60727 | M24: -732 | N24: 764.60727 | O24: 0.04856092443 | P24: 1496.60727 | Q24: 0.09505093057 | S24: from below | U24: 0.1026580611 | V24: 16509.92676
A26: 7 | B26: Street & Area Lights | C26: 41-48 | D26: 6900.605642 | E26: 708.7722 | F26: 7609.577842 | G26: 0.1027115933 | H26: 0.09314211835 | I26: 7097.80042 | J26: 0 | K26: 7097.80042 | L26: 708.7722 | M26: -346 | N26: 362.7722 | O26: 0.05111051009 | P26: 708.7722 | Q26: 0.09985800643 | S26: from Pres & Prop Rev tab | U26: 0.1027115933 | V26: 7460.57262
A28: 8 | B28: Total | D28: 550651.9413 | E28: 37999.80337 | F28: 588652.3447 | G28: 0.06900875221 | I28: 556947.2609 | J28: 0 | K28: 556947.2609 | L28: 37999.80337 | M28: -13799.7 | N28: 24200.10337 | O28: 0.04345133745 | P28: 37999.80337 | Q28: 0.06822872836 | S28: from below | U28: 0.06900875221 | V28: 581147.3642
D29: 0
P31: 0.01970096524 | R31: 0.01970096524
A33: (1) Excludes all present rate adjustments: Schedule 59 (BPA Residential Exchange), Schedule 75 (Decoupling), Schedule 76 (Tax Credit)
A34: Scheduke 89 (Low Income Discount), Schedule 91 (DSM), Schedule 92 (LIRAP), Schedule 93 (ERM) and Schedule 98 (REC Revenue).
A36: (2) Includes all present rate adjustments: Schedule 59 (BPA Residential Exchange), Schedule 75 (Decoupling), Schedule 76 (Tax Credit)
A37: Scheduke 89 (Low Income Discount), Schedule 91 (DSM), Schedule 92 (LIRAP), Schedule 93 (ERM) and Schedule 98 (REC Revenue).
